Workbook

Sheet Read Me

Sheet Control
G3: Time Series of Global Supply and Demand | N3: Time Series of Price, Marginal Cost, and | V3: Supply and Demand Schedules
G4: for Good #2 | N4: Marginal Values for Good #2 in Economy 1 | V4: for Good #2 in Economy 1
A26: SIMLEN: | B26: 30
A27: DT: | B27: 0.01 | BC27: *
A28: PER: | B28: =B26/30 -> 1
A29: TIME: | B29: 30.00059128
G47: Time Series of Interest Rates | N47: Time Series of Household Utility | V47: Time Series of International
G48: and Currency Values | N48: and Leisure | V48: Trade and Financial Balances

Sheet Econ 0
G5: < Absolute Commodity Values > | V5: < Export / Import Resolution >
U7: S
G8: 2 | H8: ='Econ 2'!AH14 -> -1657716.748 | I8: ='Econ 2'!AI14 -> 1274.924627 | J8: ='Econ 2'!AJ14 -> 10531.43283 | K8: ='Econ 2'!AK14 -> 55308.77673 | L8: 2 | M8: __ | T8: 2 | U8: ='Econ 2'!U45+'Econ 2'!U14 -> -102650.1475 | V8: ='Econ 2'!V45+'Econ 2'!V14 -> 100.2994807 | W8: ='Econ 2'!W45+'Econ 2'!W14 -> 741.9236488 | X8: ='Econ 2'!X45+'Econ 2'!Z22+'Econ 2'!X14 -> 2001.614223 | Y8: 2
G9: 1 | H9: ='Econ 1'!AH14 -> -1657716.748 | I9: ='Econ 1'!AI14 -> 1274.924627 | J9: ='Econ 1'!AJ14 -> 10531.43283 | K9: ='Econ 1'!AK14 -> 55308.77673 | L9: 1 | M9: U | T9: 1 | U9: ='Econ 1'!U45+'Econ 1'!U14 -> -106527.5047 | V9: ='Econ 1'!V45+'Econ 1'!V14 -> 100.3428617 | W9: ='Econ 1'!W45+'Econ 1'!W14 -> 825.7073545 | X9: ='Econ 1'!X45+'Econ 1'!Z22+'Econ 1'!X14 -> 1943.336439 | Y9: 1 | Z9: Global
G10: 0 | H10: =H9+H8 -> -3315433.495 | I10: =I9+I8 -> 2549.849253 | J10: =J9+J8 -> 21062.86567 | K10: =K9+K8 -> 110617.5535 | L10: 0 | T10: 0 | U10: =-2*GPE!E10 -> -209177.6522 | V10: =V9+V8 -> 200.6423424 | W10: =W9+W8 -> 1567.631003 | X10: =X9+X8 -> 3944.950661 | Y10: 0 | Z10: Supply
H11: 0 | I11: 1 | J11: 2 | K11: L | U11: 0 | V11: 1 | W11: 2 | X11: L
U12: D
G13: 2 | H13: ='Econ 2'!U41 -> -1760510.521 | I13: ='Econ 2'!V41 -> 598165.503 | J13: ='Econ 2'!W41 -> 598165.503 | K13: ='Econ 2'!X41 -> 564179.5146 | L13: 2 | M13: __ | T13: 2 | U13: ='Econ 2'!U70 -> -102723.1334 | V13: ='Econ 2'!V70 -> 98.85718369 | W13: ='Econ 2'!W70 -> 771.7701043 | X13: ='Econ 2'!X70 -> 1910.869091 | Y13: 2
G14: 1 | H14: ='Econ 1'!U41 -> -1764133.722 | I14: ='Econ 1'!V41 -> 599400.4248 | J14: ='Econ 1'!W41 -> 599400.4248 | K14: ='Econ 1'!X41 -> 565332.8721 | L14: 1 | M14: Q | T14: 1 | U14: ='Econ 1'!U70 -> -106550.5023 | V14: ='Econ 1'!V70 -> 101.8461235 | W14: ='Econ 1'!W70 -> 796.3625052 | X14: ='Econ 1'!X70 -> 2035.075593 | Y14: 1 | Z14: Global
G15: 0 | H15: =H14+H13 -> -3524644.242 | I15: =I14+I13 -> 1197565.928 | J15: =J14+J13 -> 1197565.928 | K15: =K14+K13 -> 1129512.387 | L15: 0 | T15: 0 | U15: =U14+U13 -> -209273.6357 | V15: =V14+V13 -> 200.7033072 | W15: =W14+W13 -> 1568.132609 | X15: =X14+X13 -> 3945.944684 | Y15: 0 | Z15: Demand
H16: 0 | I16: 1 | J16: 2 | K16: L | U16: 0 | V16: 1 | W16: 2 | X16: L
D18: i | F18: n | H18: =1 -> 1 | I18: =GPE!F18/GPE!$E18 -> 441.9334589 | J18: =GPE!G18/GPE!$E18 -> 53.8606403 | K18: =GPE!H18/GPE!$E18 -> 10
D19: =-D27 -> -0.1022012686 | F19: =(1-1/H41)/Term -> -0.1371093264 | G19: Y | H19: =H15/(H10+U10) -> 1.00000939 | I19: =I15/(I10+V10) -> 435.4006861 | J19: =J15/(J10+W10) -> 52.91823442 | K19: =K15/(K10+X10) -> 9.859354903 | M19: Y | T19: S | U19: 1 | V19: =IF(V21>1,1/V21,1) -> 1 | W19: =IF(W21>1,1/W21,1) -> 1 | X19: =IF(X21>1,1/X21,1) -> 1 | Y19: S | Z19: Global
D20: -0.1 | F20: -0.1355310143 | H20: 0 | I20: 1 | J20: 2 | K20: L | T20: D | U20: =U21 -> 0.9995413493 | V20: =IF(V21<1,V21,1) -> 0.9996962442 | W20: =IF(W21<1,W21,1) -> 0.9996801252 | X20: =IF(X21<1,X21,1) -> 0.9997480899 | Y20: D | Z20: Factors
U21: =IF(U15<>0,U10/U15,1) -> 0.9995413493 | V21: =IF(V15<>0,V10/V15,1) -> 0.9996962442 | W21: 0.9996801252 | X21: 0.9997480899 | Y21: S / D
G22: < Global Financial Parameters > | U22: 0 | V22: 1 | W22: 2 | X22: L
F25: Global | G25: 2 | H25: =-I25-J25 -> -82931.75228 | I25: =I$19*V8 -> 43670.46272 | J25: =J$19*W8 -> 39261.28957 | L25: 2 | T25: 2 | U25: =U$19*U8 -> -102650.1475 | V25: 100.2994807 | W25: 741.9236488 | X25: 2001.614223 | Y25: 2 | Z25: Global
D26: - i | F26: Interest | G26: 1 | H26: =-I26-J26 -> -87384.32616 | I26: =I$19*V9 -> 43689.35082 | J26: =J$19*W9 -> 43694.97534 | L26: 1 | M26: YS | T26: 1 | U26: -106527.5047 | V26: 100.3428617 | W26: 825.7073545 | X26: 1943.336439 | Y26: 1 | Z26: Supply
D27: =-H27/H32-V0 -> 0.1022012686 | F27: < Rate | G27: 0 | H27: =H26+H25 -> -170316.0784 | I27: =I26+I25 -> 87359.81353 | J27: =J26+J25 -> 82956.26491 | L27: 0 | T27: 0 | U27: =U26+U25 -> -209177.6522 | V27: =V26+V25 -> 200.6423424 | W27: =W26+W25 -> 1567.631003 | X27: =X26+X25 -> 3944.950661 | Y27: 0 | Z27: Absorbed
D28: 0.1 | H28: 0 | I28: 1 | J28: 2 | K28: L | U28: 0 | V28: 1 | W28: 2 | X28: L
D30: Global | G30: 2 | H30: =-I30-J30 -> 75425.05318 | I30: ='Econ 2'!I20 -> -39701.01369 | J30: ='Econ 2'!I21 -> -35724.03949 | L30: 2 | T30: 2 | U30: =U$20*U13 -> -102676.0194 | V30: 98.82715525 | W30: 771.5232344 | X30: 1910.387724 | Y30: 2 | Z30: Global
D31: Investment | F31: T | G31: 1 | H31: =-I31-J31 -> 79098.52006 | I31: ='Econ 1'!I20 -> -39714.31849 | J31: ='Econ 1'!I21 -> -39384.20156 | L31: 1 | M31: a | T31: 1 | U31: -106501.6328 | V31: 101.8151871 | W31: 796.1077689 | X31: 2034.562937 | Y31: 1 | Z31: Demand
D32: Term > | F32: 6.686058731 | G32: 0 | H32: =H31+H30 -> 154523.5732 | I32: =I31+I30 -> -79415.33218 | J32: =J31+J30 -> -75108.24105 | L32: 0 | T32: 0 | U32: =U31+U30 -> -209177.6522 | V32: =V31+V30 -> 200.6423424 | W32: =W31+W30 -> 1567.631003 | X32: =X31+X30 -> 3944.950661 | Y32: 0 | Z32: Met
F33: 7 | H33: 0 | I33: 1 | J33: 2 | K33: L | U33: 0 | V33: 1 | W33: 2 | X33: L
M35: F | Q35: r- | S35: r+ | U35: X
C36: Investment | L36: 2 | M36: ='Econ 2'!S33-'Econ 2'!S53 -> -134.9490025 | N36: 2 | P36: 2 | Q36: =IF(U36<0,U36,0) -> 0 | R36: 2 | S36: =IF(U36>0,U36,0) -> 25.87186939 | T36: 2 | U36: =-I$19*V36-J$19*W36-K$19*X36 -> 25.87186939 | V36: =V25-V30 -> 1.472325463 | W36: -29.59958561 | X36: 91.22649836 | Y36: 2 | Z36: Physical
C37: Term | F37: =Term-(1/H41-1/NPV)/H37 -> 6.686069627 | H37: =LN(1-Iota)*(1-Iota)^Term+Iota*D43/F43 -> 0.3236246975 | L37: 1 | M37: ='Econ 1'!S33-'Econ 1'!S53 -> 161.9302379 | N37: 1 | P37: 1 | Q37: =IF(U37<0,U37,0) -> -25.87186939 | R37: 1 | S37: =IF(U37>0,U37,0) -> 0 | T37: 1 | U37: =-I$19*V37-J$19*W37-K$19*X37 -> -25.87186939 | V37: -1.472325463 | W37: 29.59958561 | X37: -91.22649836 | Y37: 1 | Z37: Export / Import
C38: Calculation | F38: =ITerm -> 7 | L38: 0 | M38: =M37+M36 -> 26.98123541 | N38: 0 | P38: 0 | Q38: =Q37+Q36 -> -25.87186939 | R38: 0 | S38: =S37+S36 -> 25.87186939 | T38: 0 | U38: =U37+U36 -> -1.364242053e-12 | V38: =V37+V36 -> 0 | W38: =W37+W36 -> 1.136868377e-13 | X38: =X37+X36 -> -4.547473509e-13 | Y38: 0 | Z38: Profile
Q39: G/year | S39: G/year | V39: 1 | W39: 2 | X39: L
D40: K | F40: G | H40: NPV | I40: 1
C41: 2 | D41: =-SUM('Econ 2'!E19:E22)/P0_2 -> -75405.29517 | E41: 2 | F41: =-SUM('Econ 2'!G19:G22)/P0_2 -> 61556.25794 | H41: =(1-Iota/V0)^(-Term) -> 0.5217243382 | I41: (1 - i)T
C42: 1 | D42: =-SUM('Econ 1'!E19:E22)/P0_1 -> -79042.11508 | E42: 1 | F42: =-SUM('Econ 1'!G19:G22)/P0_1 -> 53568.37254 | M42: k | O42: g | Q42: rk | S42: rg
C43: 0 | D43: =D42+D41 -> -154447.4103 | E43: 0 | F43: =F42+F41 -> 115124.6305 | H43: =1/(1+Iota*Term*D43/F43) -> 0.5217233784 | I43: 1 | L43: 2 | M43: =M50 -> 206.446717 | N43: 2 | O43: =O50+O55+O60 -> 0 | P43: 2 | Q43: =IF(AND(S36>0,M43>0),-S36,0)+IF(AND(Q36<0,O43>=0),-Q36,0) -> -25.87186939 | R43: 2 | S43: =IF(AND(Q36<0,O43<0),-Q36,0)+IF(AND(S36>0,M43<=0),-S36,0) -> 0 | T43: 2 | U43: International
D44: G | F44: G | H44: =IState!C9 -> 0.5131581182 | I44: 1+iTK/G | L44: 1 | M44: =M51 -> 0 | N44: 1 | O44: =O51+O56+O61 -> -206.446717 | P44: 1 | Q44: =IF(AND(S37>0,M44>0),-S37,0)+IF(AND(Q37<0,O44>=0),-Q37,0) -> 0 | R44: 1 | S44: =IF(AND(Q37<0,O44<0),-Q37,0)+IF(AND(S37>0,M44<=0),-S37,0) -> 25.87186939 | T44: 1 | U44: < Settlements
L45: 0 | M45: =-M43-M44 -> -206.446717 | N45: 0 | O45: =-O43-O44 -> 206.446717 | P45: 0 | Q45: =-Q43-Q44 -> 25.87186939 | R45: 0 | S45: =-S43-S44 -> -25.87186939 | T45: 0
M46: G | O46: G | Q46: G/year | S46: G/year
M49: k | O49: A | Q49: k | S49: A
L50: 2 | M50: 206.446717 | N50: 2 | O50: 0 | P50: 2 | Q50: =M50+DT*Q43 -> 206.1879983 | R50: 2 | S50: =O50+DT*(S43-3*O50/Term+3*O60/Term) -> 0 | T50: 2
L51: 1 | M51: 0 | N51: 1 | O51: -47.89401722 | P51: 1 | Q51: =M51+DT*Q44 -> 0 | R51: 1 | S51: =O51+DT*(S44-3*O51/Term+3*O61/Term) -> -47.8338585 | T51: 1
L52: 0 | M52: -206.446717 | N52: 0 | O52: 47.89401722 | P52: 0 | Q52: =-Q50-Q51 -> -206.1879983 | R52: 0 | S52: =-S50-S51 -> 47.8338585 | T52: 0
O54: B | S54: B
N55: 2 | O55: 0 | P55: 2 | R55: 2 | S55: =O55+DT*3*(O50-O55)/Term -> 0 | T55: 2
M56: @ time = t > | N56: 1 | O56: -66.40589457 | P56: 1 | R56: 1 | S56: =O56+DT*3*(O51-O56)/Term -> -66.32283274 | T56: 1 | U56: < @ time = t + d
N57: 0 | O57: 66.40589457 | P57: 0 | R57: 0 | S57: =-S55-S56 -> 66.32283274 | T57: 0
O59: C | S59: C
N60: 2 | O60: 0 | P60: 2 | R60: 2 | S60: =O60+DT*3*(O55-O60)/Term -> 0 | T60: 2
N61: 1 | O61: -92.14680524 | P61: 1 | R61: 1 | S61: =O61+DT*3*(O56-O61)/Term -> -92.03130711 | T61: 1
N62: 0 | O62: 92.14680524 | P62: 0 | R62: 0 | S62: =-S60-S61 -> 92.03130711 | T62: 0

Sheet Econ 1
AI4: =-SUM(AI6:AI9) -> -2069.208993 | AJ4: =-SUM(AJ6:AJ9) -> -16331.43283 | AK4: =-SUM(AK6:AK9) -> -53796.15302
F5: < Temporal Parameters, i.e.: Turnover Fractions > | T5: H | U5: 0 | V5: 1 | W5: 2 | X5: L | AG5: U | AH5: 0 | AI5: 1 | AJ5: 2 | AK5: L | AL5: t | AM5: Z | AO5: Z
T6: 0 | V6: 1 | W6: 1 | X6: 0 | Y6: 0 | AG6: 0 | AI6: 794.2843664 | AJ6: 5800 | AK6: 8766 | AL6: 0 | AM6: =Z19+AM19 -> -637827.3586 | AO6: =Utility!E28 -> -643139.1648 | AP6: 0
S7: =1-U7 -> 4 | T7: 1 | U7: =-SUM(V7:X7) -> -3 | V7: =SIGN(AI7) -> 1 | W7: 1 | X7: 1 | Y7: 1 | Z7: =1/(1-U7) -> 0.25 | AF7: Spatial Parameters, | AG7: 1 | AI7: 644.2843664 | AJ7: 5546.692237 | AK7: 29682.74915 | AL7: 1 | AM7: =AI6 -> 794.2843664 | AO7: =Utility!M14 -> 794.2843664 | AP7: 1
E8: i | G8: n | I8: V0 | S8: =1-U8 -> 4 | T8: 2 | U8: =-SUM(V8:X8) -> -3 | V8: 1 | W8: 1 | X8: 1 | Y8: 2 | Z8: =1/(1-U8) -> 0.25 | AF8: i.e.: production and | AG8: 2 | AI8: 572.4895161 | AJ8: 4693.503722 | AK8: 25626.02758 | AL8: 2 | AM8: =AJ6 -> 5800 | AO8: =Utility!M30 -> 5693.503722 | AP8: 2
E9: =-E60 -> -0.1047529853 | G9: =(1-1/NPV_1)/Term1 -> -0.1539727664 | I9: =V0 -> 1 | J9: =IState!H13 -> 0.1 | K9: =IState!I13 -> 0.3333333333 | L9: =IState!J13 -> 1 | N9: < V | S9: =X9-U9 -> 1 | T9: L | U9: =-SUM(V9:W9) -> -2 | V9: 1 | W9: 1 | X9: =SIGN(AK9) -> -1 | Y9: L | Z9: =1/(1-U9) -> 0.3333333333 | AF9: utility tradeoffs > | AG9: L | AI9: 58.15074408 | AJ9: 291.2368745 | AK9: =Zl_1 -> -10278.62371 | AL9: L | AM9: =L9*L49 -> -10278.62371 | AN9: ZL | AO9: =Utility!M45 -> -10219.74286 | AP9: L
E10: =IState!C$13 -> -0.1 | G10: =IState!E13 -> -0.1355310143 | I10: 0 | J10: 1 | K10: 2 | L10: L | S10: h | U10: -N | Z10: 1/(N + 1)
C13: Contra- | E13: -k | G13: -g | AG13: __
C14: Accounts > | E14: =E17+SUM(E19:E22) -> 170215.9375 | G14: =G17+SUM(G19:G22) -> -115803.775 | I14: =-I17-SUM(I19:I22) -> -7.599254559e-12 | J14: =-J17-SUM(J19:J22) -> -4.902744877e-13 | K14: =-K17-SUM(K19:K22) -> 0 | L14: =-L17-SUM(L19:L22) -> -1.179500941e-12 | N14: < Markets | Q14: =E9*Kappa1 -> -17830.62759 | S14: =G9*Gamma1 -> 17830.62759 | U14: =I$9*I14 -> -7.599254559e-12 | V14: =J9*J14 -> -4.902744877e-14 | W14: =K9*K14 -> 0 | X14: =L9*L14 -> -1.179500941e-12 | Z14: < Market Pressure | AF14: =SUM(AF55:AF58) -> 4943454.035 | AG14: U | AH14: =SUM(U56:U58) -> -1657716.748 | AI14: =SUM(AI7:AI9) -> 1274.924627 | AJ14: =SUM(AJ7:AJ9) -> 10531.43283 | AK14: =SUM(AK7:AK8) -> 55308.77673
I15: 0 | J15: 1 | K15: 2 | L15: L | U15: 0 | V15: 1 | W15: 2 | X15: L | AH15: 0 | AI15: 1 | AJ15: 2 | AK15: L
R16: Balance of Payments
E17: =E25 -> 0 | G17: =G25+G33+G41 -> -445.1368358 | I17: =I25+I33+I41 -> -28.20592182 | J17: =J25+J33+J41 -> -14.50014985 | K17: =K25+K33+K41 -> 88.85406485 | L17: =L25+L33+L41 -> -91.06700427 | Q17: =Iota1*E17 -> 0 | S17: =Nu_1*G17 -> 68.53895003 | U17: =I$9*I17 -> -28.20592182 | V17: =J$9*J17 -> -1.450014985 | W17: =K$9*K17 -> 29.61802162 | X17: =L$9*L17 -> -91.06700427 | AF17: =AF53+Q17+S17 -> -4943385.496 | AH17: =U17+U53 -> 2295532.765 | AI17: =AI4+V17 -> -2070.659008 | AJ17: =AJ4+W17 -> -16301.81481 | AK17: =AK4+X17 -> -53887.22002
I18: 0 | J18: 1 | K18: 2 | L18: L | R18: e | T18: E | U18: 0 | V18: 1 | W18: 2 | X18: L | Z18: Y | AF18: u + e | AG18: m | AH18: 0 | AI18: 1 | AJ18: 2 | AK18: L | AM18: l | AO18: (u + e)/h
D19: 0 | E19: =E27 -> 0 | F19: 0 | G19: =G27+G35+G43 -> 0 | H19: 0 | I19: =I27+I35+I43 -> 106530.3812 | J19: -1003.364866 | K19: -2477.09727 | L19: -8766 | M19: 0 | P19: 0 | Q19: =Iota1*E19 -> 0 | R19: 0 | S19: =Nu_1*G19 -> 0 | T19: 0 | U19: =I$9*I19 -> 106530.3812 | V19: -100.3364866 | W19: -825.6990899 | X19: -8766 | Y19: 0 | Z19: =U45 -> -106527.5047 | AB19: =-GPE!E10 -> -104588.8261 | AF19: =AF55+Q19+S19 -> 0 | AG19: 0 | AH19: =AM19 -> -531299.8539 | AI19: =AM20 -> 693.9415048 | AJ19: =AM21 -> 4974.292646 | AK19: =AK6+X19 -> 0 | AL19: 0 | AM19: =-V49*AM20-W49*AM21-X49*AM22 -> -531299.8539 | AN19: 0 | AP19: 0
C20: Monetary > | D20: 1 | E20: =E28 -> 81675.33098 | F20: 1 | H20: 1 | I20: -39714.31849 | J20: 496.2913316 | K20: 488.6109346 | L20: 962.3311811 | M20: 1 | N20: < Physical | P20: 1 | Q20: =Iota1*E20 -> -8555.734742 | R20: 1 | S20: =Nu_1*G20 -> 0 | T20: 1 | U20: -39714.31849 | V20: 49.62913316 | W20: 162.8703115 | X20: 962.3311811 | Y20: 1 | Z20: =AM7-AM20 -> 100.3428617 | AA20: < Production | AF20: 2602603.447 | AG20: 1 | AH20: =U20+U56 -> -906410.0921 | AI20: =AI7+V20 -> 693.9134996 | AJ20: 5709.562549 | AK20: =AK7+X20 -> 30645.08033 | AL20: 1 | AM20: =AM7*Z28 -> 693.9415048 | AN20: 1 | AO20: =AF20/S7 -> 650650.8618 | AP20: 1
C21: Stocks | D21: 2 | E21: =E29 -> 88540.60649 | F21: 2 | H21: 2 | I21: -39384.20156 | J21: 320.6509084 | K21: 842.0705565 | L21: 1072.321623 | M21: 2 | N21: Stocks | P21: 2 | Q21: =Iota1*E21 -> -9274.892846 | R21: 2 | S21: =Nu_1*G21 -> 0 | T21: 2 | U21: -39384.20156 | V21: 32.06509084 | W21: 280.6901855 | X21: 1072.321623 | Y21: 2 | Z21: =AM8-AM21 -> 825.7073545 | AD21: U + E | AE21: > | AF21: 2267423.201 | AG21: 2 | AH21: =U21+U57 -> -789674.5605 | AI21: 604.554607 | AJ21: 4974.193908 | AK21: =AK8+X21 -> 26698.3492 | AL21: 2 | AM21: =AM8*Z29 -> 4974.292646 | AN21: 2 | AO21: =AF21/S8 -> 566855.8002 | AP21: 2
D22: L | F22: L | G22: =G30+G38+G46 -> -115358.6381 | H22: L | I22: -27403.65525 | J22: 200.9227755 | K22: 1057.561714 | L22: 6822.4142 | M22: L | P22: L | Q22: =Iota1*E22 -> 0 | R22: L | S22: =Nu_1*G22 -> 17762.08864 | T22: L | U22: -27403.65525 | V22: 20.09227755 | W22: 352.5205713 | X22: 6822.4142 | Y22: L | Z22: =AM9-AM22 -> -6822.663561 | AA22: < | AB22: YL = - Leisure | AF22: =AF58+Q22+S22 -> 73358.84815 | AG22: L | AH22: =U22+U58 -> -68134.27031 | AI22: 78.24302163 | AJ22: 643.7574457 | AK22: =AM22 -> -3455.960149 | AL22: L | AM22: =AM9*Z30 -> -3455.960149 | AN22: L | AO22: =AF22/S9 -> 73358.84815 | AP22: L
E23: Investment | G23: Saving | Q23: - Dividends | S23: + Dividends | Z23: =Utility!M41 -> -6766
Q24: Created | S24: Absorbed
E25: 0 | G25: -103.2680083 | I25: -9.001668663 | J25: -4.880549636 | K25: 29.60822785 | L25: -30.38307463 | V25: - Y/l
H26: A | I26: 0 | J26: 1 | K26: 2 | L26: L | S26: w | T26: W | U26: 0 | V26: 1 | W26: 2 | X26: L | Z26: l/Z | AF26: b = e/w | AH26: Q = E0/W0 | AM26: z = pl | AO26: q = P0Q
D27: 0 | E27: 0 | F27: 0 | G27: 0 | H27: 0 | I27: 35509.63509 | J27: -334.4704173 | K27: -825.7034622 | L27: -2922 | M27: 0 | T27: 0 | U27: =-Z19/AM19 -> -0.200503546 | V27: =-Z20/AI19 -> -0.1445984438 | W27: =-Z21/AJ19 -> -0.165994929 | Y27: 0 | Z27: =AM19/AM6 -> 0.8329837953 | AE27: 0 | AG27: 0 | AL27: 0 | AN27: 0 | AP27: 0
D28: 1 | E28: 81675.33098 | F28: 1 | G28: -1.388662454e-08 | H28: 1 | I28: -13238.02197 | J28: 165.4588213 | K28: 162.8689735 | L28: 320.7682921 | M28: 1 | Q28: E | R28: > | S28: =V27-U28 -> -0.01314945862 | T28: 1 | U28: =-SUM(V28:X28) -> -0.1314489852 | V28: =V20/AI20 -> 0.0715206336 | W28: 0.0285258827 | X28: 0.03140246887 | Y28: 1 | Z28: =(1-V28)*(1-W28)*(1-X28) -> 0.8736688447 | AE28: 1 | AF28: =Q20/S28 -> 650653.0031 | AG28: 1 | AH28: =U20/U28 -> 302127.2355 | AL28: 1 | AM28: =AM44*AM20 -> 650659.2984 | AN28: 1 | AO28: =P0_1*AH28 -> 650626.1954 | AP28: 1
D29: 2 | E29: 88540.60649 | F29: 2 | G29: 1.388662454e-08 | H29: 2 | I29: -13128.02 | J29: 106.8977613 | K29: 280.6948978 | L29: 357.4339792 | M29: 2 | Q29: U + E | S29: =W27-U29 -> -0.01636210933 | T29: 2 | U29: =-SUM(V29:X29) -> -0.1496328197 | V29: 0.05303919691 | W29: 0.05642928095 | X29: 0.04016434181 | Y29: 2 | Z29: =(1-V29)*(1-W29)*(1-X29) -> 0.857636663 | AE29: 2 | AF29: =Q21/S29 -> 566851.9053 | AG29: 2 | AH29: =U21/U29 -> 263205.6366 | AL29: 2 | AM29: =AM45*AM21 -> 566863.3066 | AN29: 2 | AO29: =P0_1*AH29 -> 566809.1515 | AP29: 2
D30: L | E30: 0 | F30: L | G30: -38453.17754 | H30: L | I30: -9134.59145 | J30: 66.9943844 | K30: 352.5313631 | L30: 2274.180803 | M30: L | S30: =X30-U30 -> 0.2420771772 | T30: L | U30: =-SUM(V30:W30) -> -0.8043916584 | V30: =V22/AI22 -> 0.2567932211 | W30: =W22/AJ22 -> 0.5475984373 | X30: =(AK6+Z22)/AK22 -> -0.5623144812 | Y30: L | Z30: =(1-V30)*(1-W30) -> 0.3362279082 | AE30: L | AF30: =S22/S30 -> 73373.66061 | AG30: L | AH30: =U22/U30 -> 34067.55275 | AL30: L | AM30: =AM46*AM22 -> 73376.82129 | AN30: L | AO30: =P0_1*AH30 -> 73363.93291 | AP30: L
X31: (t+Y) /l
G33: -143.1831248 | I33: -9.396134132 | J33: -4.839383696 | K33: 29.6177266 | L33: -30.35609499 | S33: =S35-U33 -> -2295399.041 | U33: =-SUM(V33:X33) -> 2295399.041 | V33: =-SUM(V35:V38) -> -901527.6603 | W33: =-SUM(W35:W38) -> -862606.0615 | X33: =-SUM(X35:X38) -> -531265.3193 | AF33: =AF35-AH33 -> -4943393.294 | AH33: =-SUM(AI33:AK33) -> 4943393.294 | AI33: =-SUM(AI35:AI38) -> -1941531.572 | AJ33: =-SUM(AJ35:AJ38) -> -1857730.474 | AK33: =-SUM(AK35:AK38) -> -1144131.248
H34: B | I34: 0 | J34: 1 | K34: 2 | L34: L | S34: hQ | T34: HQ | U34: 0 | V34: 1 | W34: 2 | X34: L | AF34: hb | AG34: Hb | AH34: 0 | AI34: 1 | AJ34: 2 | AK34: L | AO34: (PU + s)/N
F35: 0 | G35: 0 | H35: 0 | I35: 35510.1206 | J35: -334.4594285 | K35: -825.6992295 | L35: -2922 | M35: 0 | R35: 0 | S35: =U35-U35 -> 0 | T35: 0 | U35: =-U33-SUM(U36:U38) -> -531265.3193 | V35: =V6*AH28 -> 302127.2355 | W35: =W6*AH29 -> 263205.6366 | X35: =X6*AH30 -> 0 | Y35: 0 | AE35: 0 | AF35: =AH35-AH35 -> 0 | AG35: 0 | AH35: =-AH33-SUM(AH36:AH38) -> -1144131.248 | AI35: =V6*AF28 -> 650653.0031 | AJ35: =W6*AF29 -> 566851.9053 | AK35: =X6*AF30 -> 0 | AL35: 0 | AP35: 0
F36: 1 | G36: -1.272799553e-08 | H36: 1 | I36: -13238.10515 | J36: 165.4350589 | K36: 162.8701903 | L36: 320.7769529 | M36: 1 | R36: 1 | S36: =S7*$AH28 -> 1208508.942 | T36: 1 | U36: =U7*$AH28 -> -906381.7064 | V36: 302127.2355 | W36: 302127.2355 | X36: 302127.2355 | Y36: 1 | AE36: 1 | AF36: =S7*$AF28 -> 2602612.012 | AG36: 1 | AH36: =U7*$AF28 -> -1951959.009 | AI36: 650653.0031 | AJ36: 650653.0031 | AK36: 650653.0031 | AL36: 1 | AO36: =(AH56+AH84)/U7 -> 650650.8885 | AP36: 1
C37: System State | F37: 2 | G37: 1.272799553e-08 | H37: 2 | I37: -13128.06688 | J37: 106.8862626 | K37: 280.6903083 | L37: 357.4404678 | M37: 2 | R37: 2 | S37: =S8*$AH29 -> 1052822.547 | T37: 2 | U37: -789616.9099 | V37: 263205.6366 | W37: 263205.6366 | X37: 263205.6366 | Y37: 2 | AE37: 2 | AF37: =S8*$AF29 -> 2267407.621 | AG37: 2 | AH37: -1700555.716 | AI37: 566851.9053 | AJ37: 566851.9053 | AK37: 566851.9053 | AL37: 2 | AO37: =(AH57+AH85)/U8 -> 566854.9368 | AP37: 2
C38: @ time = t > | F38: L | G38: -38452.65914 | H38: L | I38: -9134.552432 | J38: 66.97749079 | K38: 352.5210042 | L38: 2274.138674 | M38: L | R38: L | S38: =S9*$AH30 -> 34067.55275 | T38: L | U38: -68135.1055 | V38: 34067.55275 | W38: 34067.55275 | X38: -34067.55275 | Y38: L | AE38: L | AF38: =S9*$AF30 -> 73373.66061 | AG38: L | AH38: -146747.3212 | AI38: 73373.66061 | AJ38: 73373.66061 | AK38: -73373.66061 | AL38: L | AO38: =(AH58+AH86)/U9 -> 73367.53038 | AP38: L
T40: __ | AE40: Intersection of
G41: -198.6857027 | I41: -9.808119024 | J41: -4.780216521 | K41: 29.6281104 | L41: -30.32783465 | S41: =SUM(S36:S38) -> 2295399.041 | T41: Q | U41: =SUM(U36:U38) -> -1764133.722 | V41: =SUM(V36:V38) -> 599400.4248 | W41: =SUM(W36:W38) -> 599400.4248 | X41: =SUM(X36:X37) -> 565332.8721 | AE41: S/D Schedules > | AF41: =AF33/AF17 -> 1.000001577 | AH41: =AH33/AH17 -> 2.153484092 | AI41: =AI33/AI17 -> 937.6394493 | AJ41: =AJ33/AJ17 -> 113.9585068 | AK41: =AK33/AK17 -> 21.23195903 | AP41: 1/(N+1)
H42: C | I42: 0 | J42: 1 | K42: 2 | L42: L | U42: 0 | V42: 1 | W42: 2 | X42: L | AG42: c Hb/m | AH42: 0 | AI42: 1 | AJ42: 2 | AK42: L | AM42: p | AO42: (pZPU)
F43: 0 | G43: 0 | H43: 0 | I43: 35510.62554 | J43: -334.4350199 | K43: -825.6945781 | L43: -2922 | M43: 0 | AE43: Marginal Costs of Production > | AF43: 1 | AG43: 0 | AH43: =AH35/AH19 -> 2.153456733 | AI43: 937.6193794 | AJ43: 113.956284 | AL43: 0 | AN43: 0 | AP43: 0
F44: 1 | G44: -1.15750391e-08 | H44: 1 | I44: -13238.19137 | J44: 165.3974514 | K44: 162.8717708 | L44: 320.785936 | M44: 1 | U44: =-GPE!E10 -> -104588.8261 | V44: =-GPE!F10 -> 100 | W44: =-GPE!G10 -> 750 | X44: =-GPE!H10 -> 8766 | AF44: =AF36/AF20 -> 1.000003291 | AG44: 1 | AH44: 2.153505379 | AI44: 937.6572202 | AJ44: 113.9584684 | AK44: =AK36/AK20 -> 21.23189093 | AL44: 1 | AM44: =AI49 -> 937.6284513 | AN44: 1 | AO44: =(AM44*AM7*AM56)^Z7 -> 650650.2991 | AP44: 1
F45: 2 | G45: 1.15750391e-08 | H45: 2 | I45: -13128.11468 | J45: 106.8668846 | K45: 280.6853504 | L45: 357.4471762 | M45: 2 | Q45: =-Q83 -> 0 | S45: =-S83 -> 0 | T45: Yt | U45: =-U83 -> -106527.5047 | V45: =Z20 -> 100.3428617 | W45: =Z21 -> 825.7073545 | X45: =AK6 -> 8766 | Z45: < Output | AE45: Values of > | AF45: =AF37/AF21 -> 0.9999931289 | AG45: 2 | AH45: 2.153489299 | AI45: 937.6355729 | AJ45: 113.958546 | AK45: =AK37/AK21 -> 21.23172114 | AL45: 2 | AM45: =AJ49 -> 113.958576 | AN45: 2 | AO45: =(AM45*AM8*AM57)^Z8 -> 566855.3371 | AP45: 2
F46: L | G46: -38452.80144 | H46: L | I46: -9134.511371 | J46: 66.95090035 | K46: 352.5093465 | L46: 2274.094722 | M46: L | U46: 0 | V46: 1 | W46: 2 | X46: L | AE46: Marginal Product | AF46: =AF38/AF22 -> 1.000201918 | AG46: L | AH46: 2.153796034 | AI46: 937.7661941 | AJ46: 113.9771836 | AK46: =AK38/AK22 -> 21.23104938 | AL46: L | AM46: =-AK49 -> -21.23196394 | AN46: L | AO46: =(AM46*AM9*AM58)^Z9 -> 73367.12844 | AP46: L
S48: =GPE!C18/GPE!$E18 -> 0.05 | U48: =GPE!E18/GPE!$E18 -> 1 | V48: =GPE!F18/GPE!$E18 -> 441.9334589 | W48: =GPE!G18/GPE!$E18 -> 53.8606403 | X48: =GPE!H18/GPE!$E18 -> 10 | AF48: 1 | AH48: =GPE!E18 -> 2 | AI48: =GPE!F18 -> 883.8669178 | AJ48: =GPE!G18 -> 107.7212806 | AK48: =GPE!H18 -> 20
G49: =3*G41/Term1 -> -72.80482899 | L49: -10278.62371 | R49: Currency > | S49: =S33/AF33 -> 0.4643367227 | T49: Y | U49: ='Econ 0'!H19 -> 1.00000939 | V49: ='Econ 0'!I19 -> 435.4006861 | W49: ='Econ 0'!J19 -> 52.91823442 | X49: ='Econ 0'!K19 -> 9.859354903 | Z49: < Values | AE49: Prices > | AF49: =P0_1*S49 -> 0.9999417458 | AG49: P | AH49: =AH33/(U53+U17) -> 2.153484092 | AI49: =P0_1*V49 -> 937.6284513 | AJ49: =P0_1*W49 -> 113.958576 | AK49: =P0_1*X49 -> 21.23196394
Q50: Value | S50: G/$ | U50: 0 | V50: 1 | W50: 2 | X50: L | Z50: G/unit | AD50: $/unit | AF50: $/$ | AH50: 0 | AI50: 1 | AJ50: 2 | AK50: L
F51: 0 | G51: =3*G43/Term1 -> 0 | H51: 0
F52: 1 | G52: =3*G44/Term1 -> -4.241466448e-09 | H52: 1
E53: Maturing | F53: 2 | G53: =3*G45/Term1 -> 4.241466448e-09 | H53: 2 | S53: =S55-U53 -> -2295560.971 | U53: =-SUM(V53:X53) -> 2295560.971 | V53: =V$49*AI4 -> -900935.0152 | W53: =W$49*AJ4 -> -864230.5911 | X53: =X$49*AK4 -> -530395.365 | AF53: =AF55-AH53 -> -4943454.035 | AH53: =-SUM(AI53:AK53) -> 4943454.035 | AI53: =AI$49*AI4 -> -1940149.224 | AJ53: =AJ$49*AJ4 -> -1861106.83 | AK53: =AK$49*AK4 -> -1142197.981
E54: Principal > | F54: L | G54: =3*G46/Term1 -> -14090.34266 | H54: L | S54: ¡ | T54: YU | U54: 0 | V54: 1 | W54: 2 | X54: L | AF54: u | AG54: PU | AH54: 0 | AI54: 1 | AJ54: 2 | AK54: L | AM54: PU
R55: 0 | S55: =U55-U55 -> 0 | T55: 0 | U55: =-U53-SUM(U56:U58) -> -637844.2237 | V55: =V$49*AI6 -> 345831.9581 | W55: 306925.7596 | X55: 86427.10508 | Y55: 0 | AF55: =AH55-AH55 -> 0 | AG55: 0 | AH55: =-AH53-SUM(AH56:AH58) -> -1373587.389 | AI55: =AI$49*AI6 -> 744743.6204 | AJ55: 660959.7409 | AK55: 186119.3959 | AL55: 0 | AN55: 0
R56: 1 | S56: =V55-U56 -> 1212527.732 | T56: 1 | U56: =-SUM(V56:X56) -> -866695.7736 | V56: 280521.8552 | W56: 293521.1601 | X56: 292652.7584 | Y56: 1 | Z56: Interaction | AE56: Interaction | AF56: =AI55-AH56 -> 2611159.182 | AG56: 1 | AH56: =-SUM(AI56:AK56) -> -1866415.561 | AI56: 604099.3527 | AJ56: 632093.149 | AK56: 630223.0597 | AL56: 1 | AM56: =AI56*AJ56*AK56 -> 2.406488238e+17 | AN56: 1
R57: 2 | S57: =W55-U57 -> 1057216.119 | T57: 2 | U57: =-SUM(V57:X57) -> -750290.359 | V57: 249262.3281 | W57: 248371.9302 | X57: 252656.1007 | Y57: 2 | Z57: < of Utility | AE57: of Utility > | AF57: =AJ55-AH57 -> 2276698.094 | AG57: 2 | AH57: =-SUM(AI57:AK57) -> -1615738.353 | AI57: 536782.4584 | AJ57: 534865.0007 | AK57: 544090.8936 | AL57: 2 | AM57: =AI57*AJ57*AK57 -> 1.562118417e+17 | AN57: 2
R58: L | S58: =X55+X58-U58 -> 25817.12106 | T58: L | U58: =-SUM(V58:W58) -> -40730.61506 | V58: 25318.87387 | W58: 15411.74119 | X58: -101340.5991 | Y58: L | Z58: with Values | AE58: with Prices | AF58: =AK55+AK58-AH58 -> 55596.75952 | AG58: L | AH58: =-SUM(AI58:AJ58) -> -87712.73161 | AI58: 54523.79211 | AJ58: 33188.9395 | AK58: -218235.368 | AL58: L | AM58: =AI58*AJ58 -> 1809586837 | AN58: L
E59: - i | G59: Domestic
E60: =-I63/I60-V0_1 -> 0.1047529853 | F60: < | G60: Interest | I60: =-I20-I21 -> 79098.52006 | J60: < Asset Valuations, a | AH60: - PU
E61: -0.1 | G61: Rate | I61: 0
Q62: =IF(AF62/AF$49<AF53,AF62/AF$49-AF53,0) -> -301.2004952 | S62: =IF(AF62/AF$49>AF53,AF62/AF$49-AF53,0) -> 0 | U62: =AH62/AH$49-U53 -> 6.132491622 | V62: =AI62/AI$49-AI4 -> -1.50326181 | W62: =AJ62/AJ$49-AJ4 -> 29.34484931 | X62: =AK62/AK$49-AK4 -> -91.73915448 | AF62: =AF64-AH62 -> -4943467.241 | AH62: =-SUM(AI62:AK62) -> 4943467.241 | AI62: =-SUM(AI64:AI67) -> -1941558.725 | AJ62: =-SUM(AJ64:AJ67) -> -1857762.733 | AK62: =-SUM(AK64:AK67) -> -1144145.784
E63: Supply Valuations, YS | H63: > | I63: =-SUM(J63:K63) -> -87384.32616 | J63: =V49*V73 -> 43689.35082 | K63: =W49*W73 -> 43694.97534 | R63: -f | T63: Q | U63: 0 | V63: 1 | W63: 2 | X63: L | AF63: hz | AG63: Hz | AH63: 0 | AI63: 1 | AJ63: 2 | AK63: L
I64: 0 | J64: 1 | K64: 2 | P64: 0 | Q64: =IF(AF64/AF$49<AF55,AF64/AF$49-AF55,0) -> 0 | R64: 0 | S64: =IF(AF64/AF$49>AF55,AF64/AF$49-AF55,0) -> 0 | T64: 0 | U64: =AH64/AH$49-U55 -> 106544.3698 | V64: =AI64/AI$49-AI6 -> -100.3428617 | W64: -825.7073545 | X64: -8766 | Y64: 0 | AE64: 0 | AF64: =AH64-AH64 -> 0 | AG64: 0 | AH64: =-AH62-SUM(AH65:AH67) -> -1144145.784 | AI64: =V6*$AM28 -> 650659.2984 | AJ64: =W6*$AM29 -> 566863.3066 | AK64: =X6*$AM30 -> 0 | AL64: 0
P65: 1 | Q65: =AF65/AF$49-AF56 -> -8370.364912 | R65: 1 | T65: 1 | U65: =AH65/AH$49-U56 -> -39732.04823 | V65: 49.65713833 | W65: 162.92016 | X65: 962.5222958 | Y65: 1 | Z65: Optimal | AE65: 1 | AF65: =S7*$AM28 -> 2602637.194 | AG65: 1 | AH65: =U7*$AM28 -> -1951977.895 | AI65: 650659.2984 | AJ65: 650659.2984 | AK65: 650659.2984 | AL65: 1
I66: NPV | J66: 1 | P66: 2 | Q66: =AF66/AF$49-AF57 -> -9112.771116 | R66: 2 | T66: 2 | U66: =AH66/AH$49-U57 -> -39401.99384 | V66: 32.08184234 | W66: 280.7889233 | X66: 1072.553297 | Y66: 2 | Z66: < Rates of | AE66: 2 | AF66: =S8*$AM29 -> 2267453.226 | AG66: 2 | AH66: -1700589.92 | AI66: 566863.3066 | AJ66: 566863.3066 | AK66: 566863.3066 | AL66: 2
E67: Investment | G67: =LN(1+E60)*(1+E60)^Term1-E60*Kappa1/Gamma1 -> 0.3791729096 | I67: =1/(1-E60*Term1*Kappa1/Gamma1) -> 0.4423636755 | J67: 1+iTk/g | P67: L | Q67: 0 | R67: L | S67: =AF67/AF$49-AF58 -> 17784.33652 | T67: L | U67: =AH67/AH$49-U58 -> -27416.46022 | V67: 20.10714281 | W67: 352.6534219 | X67: 6822.663561 | Y67: L | Z67: Change | AE67: L | AF67: =S9*$AM30 -> 73376.82129 | AG67: L | AH67: -146753.6426 | AI67: 73376.82129 | AJ67: 73376.82129 | AK67: -73376.82129 | AL67: L
E68: Term | I68: 0.5131581182
E69: Calculation | G69: =Term1-(1/I69-1/NPV_1)/G67 -> 8.187138605 | I69: =1/(1+E60)^Term1 -> 0.4423699106 | J69: 1 | Z69: Domestic
I70: NPV | J70: (1 - i)T | Q70: =SUM(Q65:Q67) -> -17483.13603 | S70: =SUM(S65:S67) -> 17784.33652 | T70: D | U70: =SUM(U65:U67) -> -106550.5023 | V70: =SUM(V65:V67) -> 101.8461235 | W70: =SUM(W65:W67) -> 796.3625052 | X70: =SUM(X65:X66) -> 2035.075593 | Z70: < Demand
U71: 0 | V71: 1 | W71: 2 | X71: L
Z72: Domestic
Q73: =Q45+Q14 -> -17830.62759 | S73: =S45+S14 -> 17830.62759 | T73: S | U73: =U45+U14 -> -106527.5047 | V73: =V45+V14 -> 100.3428617 | W73: =W45+W14 -> 825.7073545 | X73: =X45+Z22+X14 -> 1943.336439 | Z73: < Supply | AD73: =-AH73 -> 0 | AF73: 0 | AH73: =-SUM(AI73:AK73) -> 0
U74: 0 | V74: 1 | W74: 2 | X74: L | AE74: Transfers | AG74: FI | AH74: 0 | AI74: 1 | AJ74: 2 | AK74: L
E75: Domestic | G75: T | AC75: 0 | AD75: =AH75-AH75 -> 0 | AE75: 0 | AF75: 0 | AG75: 0 | AH75: =-SUM(AI75:AK75) -> 0 | AI75: 0 | AJ75: 0 | AK75: 0 | AL75: 0
E76: Investment | F76: > | G76: 8.187054575 | Z76: Demand | AC76: 1 | AD76: =AI75-AH76 -> -1.906533654 | AE76: 1 | AF76: -1.272988639e-09 | AG76: 1 | AH76: =-SUM(AI76:AK76) -> 1.906533654 | AI76: 0 | AJ76: =(AF45-AF44)*(V0-Iota)*(E20+E21) -> -1.906533654 | AL76: 1 | AM76: Equity
E77: Term | G77: =ITerm -> 7 | T77: F | U77: ='Econ 0'!U20 -> 0.9995413493 | V77: ='Econ 0'!V20 -> 0.9996962442 | W77: ='Econ 0'!W20 -> 0.9996801252 | X77: ='Econ 0'!X20 -> 0.9997480899 | Z77: < Factors | AC77: 2 | AD77: =AJ75-AH77 -> 1.906533654 | AE77: 2 | AF77: 1.272988639e-09 | AG77: 2 | AH77: =-SUM(AI77:AK77) -> -1.906533654 | AI77: =-AJ76 -> 1.906533654 | AJ77: 0 | AL77: 2 | AM77: < Markets
U78: 0 | V78: 1 | W78: 2 | X78: L | AC78: L | AD78: =AK75-AH78 -> 0 | AE78: L | AF78: 0 | AG78: L | AH78: =-SUM(AI78:AK78) -> 0 | AL78: L
R80: International Settlements | Z80: imports ( - ) | AE80: Trade Balance
E81: =P0_1*'Econ 0'!M51 -> 0 | G81: =P0_1*'Econ 0'!O51 -> -103.1390042 | I81: =I25+DT*(U81-I$9*I25*3) -> -8.990337297 | J81: =J25+DT*(V81-J$9*J25*3) -> -4.880631242 | K81: =K25+DT*(W81-K$9*K25*3) -> 29.60814143 | L81: =L25+DT*(X81-L$9*L25*3) -> -30.38384738 | Q81: =AD81-Q17 -> 0 | S81: =AF81-S17 -> -12.82429086 | U81: ='Econ 0'!U37 -> -25.87186939 | V81: ='Econ 0'!V37 -> -1.472325463 | W81: ='Econ 0'!W37 -> 29.59958561 | X81: ='Econ 0'!X37 -> -91.22649836 | Z81: < eXports ( + ) | AD81: =IF(AH81>0,-AH81,0) -> 0 | AF81: =IF(AH81<0,-AH81,0) -> 55.71465917 | AH81: =AH$49*U81 -> -55.71465917 | AI81: =AI$49*V81 -> -1380.494244 | AJ81: =AJ$49*W81 -> 3373.126627 | AK81: =AK$49*X81 -> -1936.917724
H82: A | I82: 0 | J82: 1 | K82: 2 | L82: L | R82: r | T82: R | U82: 0 | V82: 1 | W82: 2 | X82: L | AE82: - NCF | AG82: PR | AH82: 0 | AI82: 1 | AJ82: 2 | AK82: L
D83: 0 | E83: =E27+DT*(Q83-Iota1*E19) -> 0 | F83: 0 | G83: =G27+DT*(S83-Nu_1*G19+G51-3*G27/Term1) -> 0 | H83: 0 | I83: =I27+DT*(U83-I$9*I27*3) -> 35509.62108 | J83: -334.4704347 | K83: -825.7035011 | L83: -2922 | M83: 0 | P83: 0 | Q83: 0 | R83: 0 | S83: =AF75+AF83 -> 0 | T83: 0 | U83: =-U81-SUM(U84:U86) -> 106527.5047 | V83: =-V45 -> -100.3428617 | W83: =-W45 -> -825.7073545 | X83: =-X45 -> -8766 | Y83: 0 | Z83: < Output ( - ) | AC83: 0 | AD83: 0 | AE83: 0 | AF83: =AH83-AH83 -> 0 | AG83: 0 | AH83: =-AH81-SUM(AH84:AH86) -> 229441.6055 | AI83: =-AI81-SUM(AI84:AI86) -> -94084.32199 | AJ83: =-AJ81-SUM(AJ84:AJ86) -> -94096.43432 | AK83: =-AK81-SUM(AK84:AK86) -> -41260.84919 | AL83: 0
D84: 1 | E84: =E28+DT*(Q84-Iota1*E20) -> 81675.39708 | F84: 1 | G84: =G28+DT*(S84-Nu_1*G20+G52-3*G28/Term1) -> -1.389088404e-08 | H84: 1 | I84: -13238.01956 | J84: 165.4588653 | K84: 162.8689642 | L84: 320.7680416 | M84: 1 | P84: 1 | Q84: =AD76+AD84 -> -8549.124493 | R84: 1 | S84: =AF76+AF84 -> -1.272988639e-09 | T84: 1 | U84: =U$77*U65 -> -39713.8251 | V84: 49.64205468 | W84: 162.8680459 | X84: 962.2798267 | Y84: 1 | AC84: 1 | AD84: =AI83-AH84 -> -8547.217959 | AE84: 1 | AF84: 0 | AG84: 1 | AH84: =-SUM(AI84:AK84) -> -85537.10403 | AI84: =AI$49*V84 -> 46545.80285 | AJ84: 18560.21059 | AK84: 20431.09058 | AL84: 1 | AM84: Monetary
D85: 2 | E85: =E29+DT*(Q85-Iota1*E21) -> 88540.67471 | F85: 2 | G85: =G29+DT*(S85-Nu_1*G21+G53-3*G29/Term1) -> 1.389088404e-08 | H85: 2 | I85: -13128.01862 | J85: 106.897789 | K85: 280.6949399 | L85: 357.4337909 | M85: 2 | P85: 2 | Q85: =AD77+AD85 -> -9268.070128 | R85: 2 | S85: 1.272988639e-09 | T85: 2 | U85: -39383.92209 | V85: 32.0720973 | W85: 280.699106 | X85: 1072.28311 | Y85: 2 | Z85: < Rates of | AC85: 2 | AD85: =AJ83-AH85 -> -9269.976662 | AE85: 2 | AF85: 0 | AG85: 2 | AH85: =-SUM(AI85:AK85) -> -84826.45766 | AI85: 30071.71092 | AJ85: 31988.07041 | AK85: 22766.67633 | AL85: 2 | AM85: < Transactions
D86: L | E86: =E30+DT*(Q86-Iota1*E22) -> 0 | F86: L | G86: =G30+DT*(S86-Nu_1*G22+G54-3*G30/Term1) -> -38453.18225 | H86: L | I86: -9134.592563 | J86: 66.99441159 | K86: 352.5314556 | L86: 2274.182015 | M86: L | P86: L | Q86: 0 | R86: L | S86: =AF78+AF86 -> 17761.47996 | T86: L | U86: =U$77*U67 -> -27403.88564 | V86: =V$77*V67 -> 20.10103515 | W86: =W$77*W67 -> 352.540617 | X86: =-X81-SUM(X83:X85) -> 6822.663561 | Y86: L | Z86: Change | AC86: L | AD86: 0 | AE86: L | AF86: =AK83-AH86 -> 17761.47996 | AG86: L | AH86: =-SUM(AI86:AK86) -> -59022.32916 | AI86: =AI$49*V86 -> 18847.30246 | AJ86: =AJ$49*W86 -> 40175.0267 | AK86: 0 | AL86: L
Q87: Debt Service | S87: Passive Income | AD87: Cost of Sales | AF87: Consumption
AD88: Minus Sales | AF88: Minus Wages
G89: =P0_1*'Econ 0'!O56 -> -143.0040376 | I89: =I33+DT*I$9*3*(I25-I33) -> -9.384300168 | J89: =J33+DT*J$9*3*(J25-J33) -> -4.839507194 | K89: =K33+DT*K$9*3*(K25-K33) -> 29.61763162 | L89: =L33+DT*L$9*3*(L25-L33) -> -30.35690438 | Q89: =GPE!A8 -> 0 | S89: =GPE!C8 -> -0.2886111448 | U89: =GPE!E8 -> 0 | V89: =GPE!F8 -> 0 | W89: =GPE!G8 -> 0 | X89: =GPE!H8 -> 0
H90: B | I90: 0 | J90: 1 | K90: 2 | L90: L | R90: r | T90: R | U90: 0 | V90: 1 | W90: 2 | X90: L
F91: 0 | G91: =G35+DT*3*(G27-G35)/Term1 -> 0 | H91: 0 | I91: =I35+DT*I$9*3*(I27-I35) -> 35510.10604 | J91: -334.4594615 | K91: -825.6992718 | L91: -2922 | M91: 0 | P91: 0 | Q91: =GPE!C10 -> 0 | R91: 0 | S91: =GPE!A10 -> 0 | T91: 0 | U91: =GPE!E10 -> 104588.8261 | V91: =GPE!F10 -> -100 | W91: =GPE!G10 -> -750 | X91: =GPE!H10 -> -8766 | Y91: 0
F92: 1 | G92: =G36+DT*3*(G28-G36)/Term1 -> -1.273224112e-08 | H92: 1 | I92: -13238.10266 | J92: 165.4351302 | K92: 162.8701782 | L92: 320.7766931 | M92: 1 | P92: 1 | Q92: =GPE!C11 -> -8035.153798 | R92: 1 | S92: =GPE!A11 -> 0 | T92: 1 | U92: =GPE!E11 -> -40175.76899 | V92: =GPE!F11 -> 50 | W92: =GPE!G11 -> 150 | X92: =GPE!H11 -> 1000 | Y92: 1
C93: System State | F93: 2 | G93: =G37+DT*3*(G29-G37)/Term1 -> 1.273224112e-08 | H93: 2 | I93: -13128.06548 | J93: 106.886297 | K93: 280.6903542 | L93: 357.4402731 | M93: 2 | P93: 2 | Q93: =GPE!C12 -> -7344.632768 | R93: 2 | S93: =GPE!A12 -> 0 | T93: 2 | U93: =GPE!E12 -> -36723.16384 | V93: =GPE!F12 -> 30 | W93: =GPE!G12 -> 250 | X93: =GPE!H12 -> 1000 | Y93: 2
C94: @ time = t + d > | F94: L | G94: =G38+DT*3*(G30-G38)/Term1 -> -38452.66104 | H94: L | I94: -9134.553603 | J94: 66.97754147 | K94: 352.5211078 | L94: 2274.139938 | M94: L | P94: L | Q94: =GPE!A13 -> 0 | R94: L | S94: =GPE!C13 -> 15379.78657 | T94: L | U94: =GPE!E13 -> -27689.89328 | V94: =GPE!F13 -> 20 | W94: =GPE!G13 -> 350 | X94: =GPE!H13 -> 6766 | Y94: L
G97: =P0_1*'Econ 0'!O61 -> -198.4366793 | I97: =I41+DT*I$9*3*(I33-I41) -> -9.795759477 | J97: =J41+DT*J$9*3*(J33-J41) -> -4.780394023 | K97: =K41+DT*K$9*3*(K33-K41) -> 29.62800656 | L97: =L41+DT*L$9*3*(L33-L41) -> -30.32868246 | S97: u
H98: C | I98: 0 | J98: 1 | K98: 2 | L98: L | S98: (h/w-1)
F99: 0 | G99: =G43+DT*3*(G35-G43)/Term1 -> 0 | H99: 0 | I99: =I43+DT*I$9*3*(I35-I43) -> 35510.61039 | J99: -334.4350931 | K99: -825.6946246 | L99: -2922 | M99: 0 | T99: 0
F100: 1 | G100: =G44+DT*3*(G36-G44)/Term1 -> -1.15792639e-08 | H100: 1 | I100: -13238.18879 | J100: 165.3975642 | K100: 162.871755 | L100: 320.7856665 | M100: 1 | S100: =AF56/(S7/S28-1) -> -8555.706677 | T100: 1
F101: 2 | G101: =G45+DT*3*(G37-G45)/Term1 -> 1.15792639e-08 | H101: 2 | I101: -13128.11324 | J101: 106.8669427 | K101: 280.6853999 | L101: 357.4469749 | M101: 2 | S101: =AF57/(S8/S29-1) -> -9274.956316 | T101: 2
F102: L | G102: =G46+DT*3*(G38-G46)/Term1 -> -38452.80092 | H102: L | I102: -9134.512603 | J102: 66.95098012 | K102: 352.5094631 | L102: 2274.096041 | M102: L | S102: =AF58/(S9/S30-1) -> 17757.35761 | T102: L
L105: =L49+DT*S105 -> -10278.62707 | S105: =(S102-S22)/AK49/(1-Z30) -> -0.3356963711 | T105: < | U105: ∂ZL/∂t
L106: =Utility!M45 -> -10219.74286

Sheet Econ 2
AI4: =-SUM(AI6:AI9) -> -2069.208993 | AJ4: =-SUM(AJ6:AJ9) -> -16224.93656 | AK4: =-SUM(AK6:AK9) -> -53861.44344
F5: < Temporal Parameters, i.e.: Turnover Fractions > | T5: H | U5: 0 | V5: 1 | W5: 2 | X5: L | AG5: U | AH5: 0 | AI5: 1 | AJ5: 2 | AK5: L | AL5: t | AM5: Z | AO5: Z
T6: 0 | V6: 1 | W6: 1 | X6: 0 | Y6: 0 | AG6: 0 | AI6: 794.2843664 | AJ6: 5693.503722 | AK6: 8766 | AL6: 0 | AM6: =Z19+AM19 -> -632836.1204 | AO6: =Utility!E28 -> -643139.1648 | AP6: 0
S7: =1-U7 -> 4 | T7: 1 | U7: =-SUM(V7:X7) -> -3 | V7: =SIGN(AI7) -> 1 | W7: 1 | X7: 1 | Y7: 1 | Z7: =1/(1-U7) -> 0.25 | AF7: Spatial Parameters, | AG7: 1 | AI7: 644.2843664 | AJ7: 5546.692237 | AK7: 29682.74915 | AL7: 1 | AM7: =AI6 -> 794.2843664 | AO7: =Utility!M14 -> 794.2843664 | AP7: 1
E8: i | G8: n | I8: V0 | S8: =1-U8 -> 4 | T8: 2 | U8: =-SUM(V8:X8) -> -3 | V8: 1 | W8: 1 | X8: 1 | Y8: 2 | Z8: =1/(1-U8) -> 0.25 | AF8: i.e.: production and | AG8: 2 | AI8: 572.4895161 | AJ8: 4693.503722 | AK8: 25626.02758 | AL8: 2 | AM8: =AJ6 -> 5693.503722 | AO8: =Utility!M30 -> 5693.503722 | AP8: 2
E9: =-E60 -> -0.09952527425 | G9: =(1-1/NPV_2)/Term2 -> -0.1222508535 | I9: =V0 -> 1 | J9: =IState!H13 -> 0.1 | K9: =IState!I13 -> 0.3333333333 | L9: =IState!J13 -> 1 | N9: < V | S9: =X9-U9 -> 1 | T9: L | U9: =-SUM(V9:W9) -> -2 | V9: 1 | W9: 1 | X9: -1 | Y9: L | Z9: =1/(1-U9) -> 0.3333333333 | AF9: utility tradeoffs > | AG9: L | AI9: 58.15074408 | AJ9: 291.2368745 | AK9: =Zl_2 -> -10213.33329 | AL9: L | AM9: =L9*L49 -> -10213.33329 | AN9: ZL | AO9: =Utility!M45 -> -10219.74286 | AP9: L
E10: =IState!C13 -> -0.1 | G10: =IState!E13 -> -0.1355310143 | I10: 0 | J10: 1 | K10: 2 | L10: L | S10: h | U10: -N | Z10: 1/(N + 1)
C13: Contra- | E13: -k | G13: -g | AG13: __
C14: Accounts > | E14: =E17+SUM(E19:E22) -> 146755.3134 | G14: =G17+SUM(G19:G22) -> -119474.5263 | I14: 0 | J14: 0 | K14: 0 | L14: 0 | N14: < Markets | Q14: =E9*Kappa2 -> -14605.86281 | S14: =G9*Gamma2 -> 14605.86281 | U14: =I$9*I14 -> 0 | V14: =J9*J14 -> 0 | W14: =K9*K14 -> 0 | X14: =L9*L14 -> 0 | Z14: < Market Pressure | AF14: =SUM(AF56:AF58) -> 4445765.015 | AG14: U | AH14: =SUM(U56:U58) -> -1657716.748 | AI14: =SUM(AI7:AI9) -> 1274.924627 | AJ14: =SUM(AJ7:AJ9) -> 10531.43283 | AK14: =SUM(AK7:AK8) -> 55308.77673
I15: 0 | J15: 1 | K15: 2 | L15: L | U15: 0 | V15: 1 | W15: 2 | X15: L | AH15: 0 | AI15: 1 | AJ15: 2 | AK15: L
R16: Balance of Payments
E17: =E25 -> 401.1939692 | G17: =G25+G33+G41 -> 0 | I17: =I25+I33+I41 -> 28.20213405 | J17: =J25+J33+J41 -> 14.49954674 | K17: =K25+K33+K41 -> -88.85441379 | L17: =L25+L33+L41 -> 91.06847274 | Q17: =Iota2*E17 -> -39.92893981 | S17: =Nu_2*G17 -> 0 | U17: =I$9*I17 -> 28.20213405 | V17: =J$9*J17 -> 1.449954674 | W17: =K$9*K17 -> -29.61813793 | X17: =L$9*L17 -> 91.06847274 | AF17: =AF53+Q17+S17 -> -4445804.944 | AH17: =U53+U17 -> 2290597.3 | AI17: =AI4+V17 -> -2067.759038 | AJ17: =AJ4+W17 -> -16254.55469 | AK17: =AK4+X17 -> -53770.37497
I18: 0 | J18: 1 | K18: 2 | L18: L | R18: e | T18: E | U18: 0 | V18: 1 | W18: 2 | X18: L | Z18: Y | AF18: u + e | AG18: m | AH18: 0 | AI18: 1 | AJ18: 2 | AK18: L | AM18: l | AO18: (u + e)/h
D19: 0 | E19: =E27 -> 0 | F19: 0 | G19: =G27+G35+G43 -> 0 | H19: 0 | I19: =I27+I35+I43 -> 102647.2876 | J19: -1002.394404 | K19: -2225.582009 | L19: -8766 | M19: 0 | P19: 0 | Q19: =Iota2*E19 -> 0 | R19: 0 | S19: =Nu_2*G19 -> 0 | T19: 0 | U19: =I$9*I19 -> 102647.2876 | V19: -100.2394404 | W19: -741.8606697 | X19: -8766 | Y19: 0 | Z19: =U45 -> -102650.1475 | AB19: =-GPE!E10 -> -104588.8261 | AF19: =AF55+Q19+S19 -> 0 | AG19: 0 | AH19: =AM19 -> -530185.9729 | AI19: =AM20 -> 693.9848857 | AJ19: =AM21 -> 4951.580073 | AK19: =AK6+X19 -> 0 | AL19: 0 | AM19: =-V49*AM20-W49*AM21-X49*AM22 -> -530185.9729 | AN19: 0 | AP19: 0
C20: Monetary > | D20: 1 | E20: =E28 -> 77408.02639 | F20: 1 | H20: 1 | I20: -39701.01369 | J20: 496.0755778 | K20: 488.3247588 | L20: 961.8803469 | M20: 1 | N20: < Physical | P20: 1 | Q20: =Iota2*E20 -> -7704.055055 | R20: 1 | S20: =Nu_2*G20 -> 0 | T20: 1 | U20: -39701.01369 | V20: 49.60755778 | W20: 162.7749196 | X20: 961.8803469 | Y20: 1 | Z20: =AM7-AM20 -> 100.2994807 | AA20: < Production | AF20: 2345690.73 | AG20: 1 | AH20: =U56+U20 -> -906396.7873 | AI20: =AI7+V20 -> 693.8919242 | AJ20: 5709.467157 | AK20: =AK7+X20 -> 30644.6295 | AL20: 1 | AM20: =AM7*Z28 -> 693.9848857 | AN20: 1 | AO20: =AF20/S7 -> 586422.6825 | AP20: 1
C21: Stocks | D21: 2 | E21: =E29 -> 68946.09302 | F21: 2 | H21: 2 | I21: -35724.03949 | J21: 292.5389663 | K21: 772.8706343 | L21: 948.5494897 | M21: 2 | N21: Stocks | P21: 2 | Q21: =Iota2*E21 -> -6861.878816 | R21: 2 | S21: =Nu_2*G21 -> 0 | T21: 2 | U21: -35724.03949 | V21: 29.25389663 | W21: 257.6235448 | X21: 948.5494897 | Y21: 2 | Z21: =AM8-AM21 -> 741.9236488 | AD21: U + E | AE21: > | AF21: 2034150.508 | AG21: 2 | AH21: =U57+U21 -> -786014.3985 | AI21: 601.7434128 | AJ21: 4951.127267 | AK21: =AK8+X21 -> 26574.57707 | AL21: 2 | AM21: =AM8*Z29 -> 4951.580073 | AN21: 2 | AO21: =AF21/S8 -> 508537.6271 | AP21: 2
D22: L | F22: L | G22: =G30+G38+G46 -> -119474.5263 | H22: L | I22: -27250.43653 | J22: 199.2803135 | K22: 1053.24103 | L22: 6764.501691 | M22: L | P22: L | Q22: =Iota2*E22 -> 0 | R22: L | S22: =Nu_2*G22 -> 14605.86281 | T22: L | U22: -27250.43653 | V22: 19.92803135 | W22: 351.0803432 | X22: 6764.501691 | Y22: L | Z22: =AM9-AM22 -> -6764.385777 | AA22: < | AB22: YL = - Leisure | AF22: =AF58+Q22+S22 -> 65963.70569 | AG22: L | AH22: =U58+U22 -> -67981.05159 | AI22: 78.07877543 | AJ22: 642.3172177 | AK22: =AM22 -> -3448.947512 | AL22: L | AM22: =AM9*Z30 -> -3448.947512 | AN22: L | AO22: =AF22/S9 -> 65963.70569 | AP22: L
E23: Investment | G23: Saving | Q23: - Dividends | S23: + Dividends | Z23: =Utility!M41 -> -6766
Q24: Created | S24: Absorbed
E25: 401.1939692 | G25: 0 | I25: 9.000518913 | J25: 4.880487674 | K25: -29.608334 | L25: 30.38354243 | V25: - Y/l
H26: A | I26: 0 | J26: 1 | K26: 2 | L26: L | S26: w | T26: W | U26: 0 | V26: 1 | W26: 2 | X26: L | Z26: l/Z | AF26: b = e/w | AH26: Q = E0/W0 | AM26: z = pl | AO26: q = P0Q
D27: 0 | E27: 0 | F27: 0 | G27: 0 | H27: 0 | I27: 34216.25427 | J27: -334.2583419 | K27: -741.89372 | L27: -2922 | M27: 0 | T27: 0 | U27: =-Z19/AM19 -> -0.1936115868 | V27: =-Z20/AI19 -> -0.144526895 | W27: =-Z21/AJ19 -> -0.1498357368 | Y27: 0 | Z27: =AM19/AM6 -> 0.8377934757 | AE27: 0 | AG27: 0 | AL27: 0 | AN27: 0 | AP27: 0
D28: 1 | E28: 77408.02639 | F28: 1 | G28: -1.345674169e-08 | H28: 1 | I28: -13233.71941 | J28: 165.4127758 | K28: 162.7823853 | L28: 320.6225032 | M28: 1 | Q28: E | R28: > | S28: =V27-U28 -> -0.01313726007 | T28: 1 | U28: =-SUM(V28:X28) -> -0.1313896349 | V28: =V20/AI20 -> 0.07149176414 | W28: 0.02850965162 | X28: 0.03138821917 | Y28: 1 | Z28: =(1-V28)*(1-W28)*(1-X28) -> 0.8737234611 | AE28: 1 | AF28: =Q20/S28 -> 586427.8406 | AG28: 1 | AH28: =U20/U28 -> 302162.4477 | AL28: 1 | AM28: =(AM44*AM7*AM56)^Z7 -> 586420.4034 | AN28: 1 | AO28: =P0_2*AH28 -> 586467.0226 | AP28: 1
D29: 2 | E29: 68946.09302 | F29: 2 | G29: 1.345674169e-08 | H29: 2 | I29: -11908.06663 | J29: 97.54634321 | K29: 257.6344597 | L29: 316.1800008 | M29: 2 | Q29: U + E | S29: =W27-U29 -> -0.01349332254 | T29: 2 | U29: =-SUM(V29:X29) -> -0.1363424143 | V29: 0.04861523368 | W29: 0.05203331097 | X29: 0.03569386964 | Y29: 2 | Z29: =(1-V29)*(1-W29)*(1-X29) -> 0.8696894417 | AE29: 2 | AF29: =Q21/S29 -> 508538.8564 | AG29: 2 | AH29: =U21/U29 -> 262017.0669 | AL29: 2 | AM29: =(AM45*AM8*AM57)^Z8 -> 508535.8592 | AN29: 2 | AO29: =P0_2*AH29 -> 508548.8626 | AP29: 2
D30: L | E30: 0 | F30: L | G30: -39831.3781 | H30: L | I30: -9083.468754 | J30: 66.4187352 | K30: 351.085209 | L30: 2254.813954 | M30: L | S30: =X30-U30 -> 0.2214587758 | T30: L | U30: =-SUM(V30:W30) -> -0.8018138596 | V30: =V22/AI22 -> 0.2552298143 | W30: =W22/AJ22 -> 0.5465840453 | X30: =(AK6+Z22)/AK22 -> -0.5803550838 | Y30: L | Z30: =(1-V30)*(1-W30) -> 0.3376906848 | AE30: L | AF30: =S22/S30 -> 65952.96464 | AG30: L | AH30: =U22/U30 -> 33985.9884 | AL30: L | AM30: =(AM46*AM9*AM58)^Z9 -> 65984.2785 | AN30: L | AO30: =P0_2*AH30 -> 65963.39677 | AP30: L
X31: (t+Y) /l
G33: 0 | I33: 9.394873942 | J33: 4.839237633 | K33: -29.61784258 | L33: 30.35658415 | S33: =S35-U33 -> -2290704.047 | U33: =-SUM(V33:X33) -> 2290704.047 | V33: =-SUM(V35:V38) -> -900327.9507 | W33: =-SUM(W35:W38) -> -860182.5699 | X33: =-SUM(X35:X38) -> -530193.5262 | AF33: =AF35-AH33 -> -4445819.753 | AH33: =-SUM(AI33:AK33) -> 4445819.753 | AI33: =-SUM(AI35:AI38) -> -1747347.502 | AJ33: =-SUM(AJ35:AJ38) -> -1669458.518 | AK33: =-SUM(AK35:AK38) -> -1029013.732
H34: B | I34: 0 | J34: 1 | K34: 2 | L34: L | S34: hQ | T34: HQ | U34: 0 | V34: 1 | W34: 2 | X34: L | AF34: hb | AG34: Hb | AH34: 0 | AI34: 1 | AJ34: 2 | AK34: L | AO34: (PU + s)/N
F35: 0 | G35: 0 | H35: 0 | I35: 34215.769 | J35: -334.1483118 | K35: -741.8614575 | L35: -2922 | M35: 0 | R35: 0 | S35: =U35-U35 -> 0 | T35: 0 | U35: =-U33-SUM(U36:U38) -> -530193.5262 | V35: =V6*AH28 -> 302162.4477 | W35: =W6*AH29 -> 262017.0669 | X35: =X6*AH30 -> 0 | Y35: 0 | AE35: 0 | AF35: =AH35-AH35 -> 0 | AG35: 0 | AH35: =-AH33-SUM(AH36:AH38) -> -1029013.732 | AI35: =V6*AF28 -> 586427.8406 | AJ35: =W6*AF29 -> 508538.8564 | AK35: =X6*AF30 -> 0 | AL35: 0 | AP35: 0
F36: 1 | G36: -1.27304742e-08 | H36: 1 | I36: -13233.67165 | J36: 165.3671442 | K36: 162.7750997 | L36: 320.6267233 | M36: 1 | R36: 1 | S36: =S7*$AH28 -> 1208649.791 | T36: 1 | U36: =U7*$AH28 -> -906487.3431 | V36: 302162.4477 | W36: 302162.4477 | X36: 302162.4477 | Y36: 1 | AE36: 1 | AF36: =S7*$AF28 -> 2345711.362 | AG36: 1 | AH36: =U7*$AF28 -> -1759283.522 | AI36: 586427.8406 | AJ36: 586427.8406 | AK36: 586427.8406 | AL36: 1 | AO36: =(AH56+AH84)/U7 -> 586412.8261 | AP36: 1
C37: System State | F37: 2 | G37: 1.27304742e-08 | H37: 2 | I37: -11908.01372 | J37: 97.51620122 | K37: 257.6238523 | L37: 316.1831199 | M37: 2 | R37: 2 | S37: =S8*$AH29 -> 1048068.268 | T37: 2 | U37: -786051.2007 | V37: 262017.0669 | W37: 262017.0669 | X37: 262017.0669 | Y37: 2 | AE37: 2 | AF37: =S8*$AF29 -> 2034155.426 | AG37: 2 | AH37: -1525616.569 | AI37: 508538.8564 | AJ37: 508538.8564 | AK37: 508538.8564 | AL37: 2 | AO37: =(AH57+AH85)/U8 -> 508529.007 | AP37: 2
C38: @ time = t > | F38: L | G38: -39825.17848 | H38: L | I38: -9083.4785 | J38: 66.42572871 | K38: 351.0803481 | L38: 2254.833573 | M38: L | R38: L | S38: =S9*$AH30 -> 33985.9884 | T38: L | U38: -67971.97679 | V38: 33985.9884 | W38: 33985.9884 | X38: -33985.9884 | Y38: L | AE38: L | AF38: =S9*$AF30 -> 65952.96464 | AG38: L | AH38: -131905.9293 | AI38: 65952.96464 | AJ38: 65952.96464 | AK38: -65952.96464 | AL38: L | AO38: =(AH58+AH86)/U9 -> 65975.95123 | AP38: L
T40: __ | AE40: Intersection of
G41: 0 | I41: 9.806741192 | J41: 4.779821435 | K41: -29.62823721 | L41: 30.32834616 | S41: =SUM(S36:S38) -> 2290704.047 | T41: Q | U41: =SUM(U36:U38) -> -1760510.521 | V41: =SUM(V36:V38) -> 598165.503 | W41: =SUM(W36:W38) -> 598165.503 | X41: =SUM(X36:X37) -> 564179.5146 | AE41: S/D Schedules > | AF41: =AF33/AF17 -> 1.000003331 | AH41: =AH33/AH17 -> 1.940899761 | AI41: =AI33/AI17 -> 845.0440645 | AJ41: =AJ33/AJ17 -> 102.7071211 | AK41: =AK33/AK17 -> 19.13718721 | AP41: 1/(N+1)
H42: C | I42: 0 | J42: 1 | K42: 2 | L42: L | U42: 0 | V42: 1 | W42: 2 | X42: L | AG42: c Hb/m | AH42: 0 | AI42: 1 | AJ42: 2 | AK42: L | AM42: p | AO42: (pZPU)
F43: 0 | G43: 0 | H43: 0 | I43: 34215.26431 | J43: -333.9877507 | K43: -741.8268315 | L43: -2922 | M43: 0 | AE43: Marginal Costs of Production > | AF43: 1 | AG43: 0 | AH43: =AH35/AH19 -> 1.940854313 | AI43: 845.0152916 | AJ43: 102.7023392 | AL43: 0 | AN43: 0 | AP43: 0
F44: 1 | G44: -1.200244327e-08 | H44: 1 | I44: -13233.62264 | J44: 165.2956578 | K44: 162.7672738 | L44: 320.6311204 | M44: 1 | U44: =-GPE!E10 -> -104588.8261 | V44: =-GPE!F10 -> 100 | W44: =-GPE!G10 -> 750 | X44: =-GPE!H10 -> 8766 | AF44: =AF36/AF20 -> 1.000008796 | AG44: 1 | AH44: 1.940963987 | AI44: 845.1284993 | AJ44: 102.7114833 | AK44: =AK36/AK20 -> 19.13639846 | AL44: 1 | AM44: =AI49 -> 845.0690877 | AN44: 1 | AO44: =(AM44*AM7*AM56)^Z7 -> 586420.4034 | AP44: 1
F45: 2 | G45: 1.200244327e-08 | H45: 2 | I45: -11907.95914 | J45: 97.47642184 | K45: 257.6123223 | L45: 316.1863691 | M45: 2 | Q45: =-Q83 -> 0 | S45: =-S83 -> 0 | T45: Yt | U45: =-U83 -> -102650.1475 | V45: =Z20 -> 100.2994807 | W45: =Z21 -> 741.9236488 | X45: =AK6 -> 8766 | Z45: < Output | AE45: Values of > | AF45: =AF37/AF21 -> 1.000002417 | AG45: 2 | AH45: 1.940952446 | AI45: 845.1091373 | AJ45: 102.7117319 | AK45: =AK37/AK21 -> 19.13629162 | AL45: 2 | AM45: =AJ49 -> 102.7089886 | AN45: 2 | AO45: =(AM45*AM8*AM57)^Z8 -> 508535.8592 | AP45: 2
F46: L | G46: -39817.96976 | H46: L | I46: -9083.489276 | J46: 66.43584964 | K46: 351.0754726 | L46: 2254.854164 | M46: L | U46: 0 | V46: 1 | W46: 2 | X46: L | AE46: Marginal Product | AF46: =AF38/AF22 -> 0.9998371672 | AG46: L | AH46: 1.940333758 | AI46: 844.6977335 | AJ46: 102.6797396 | AK46: =AK38/AK22 -> 19.12263507 | AL46: L | AM46: =-AK49 -> -19.13601958 | AN46: L | AO46: =(AM46*AM9*AM58)^Z9 -> 65984.2785 | AP46: L
S48: =AF48/AH48 -> 0.5 | U48: =GPE!E18/GPE!$E18 -> 1 | V48: =GPE!F18/GPE!$E18 -> 441.9334589 | W48: =GPE!G18/GPE!$E18 -> 53.8606403 | X48: =GPE!H18/GPE!$E18 -> 10 | AF48: 1 | AH48: =GPE!E18 -> 2 | AI48: =GPE!F18 -> 883.8669178 | AJ48: =GPE!G18 -> 107.7212806 | AK48: =GPE!H18 -> 20
G49: =3*G41/Term2 -> 0 | L49: -10213.33329 | R49: Currency > | S49: =S33/AF33 -> 0.5152489696 | T49: Y | U49: ='Econ 0'!H19 -> 1.00000939 | V49: ='Econ 0'!I19 -> 435.4006861 | W49: ='Econ 0'!J19 -> 52.91823442 | X49: ='Econ 0'!K19 -> 9.859354903 | Z49: < Values | AE49: Prices > | AF49: =P0_2*S49 -> 1.000046602 | AG49: P | AH49: =AH33/(U53+U17) -> 1.940899761 | AI49: =P0_2*V49 -> 845.0690877 | AJ49: =P0_2*W49 -> 102.7089886 | AK49: =P0_2*X49 -> 19.13601958
Q50: Value | S50: G/$ | U50: 0 | V50: 1 | W50: 2 | X50: L | Z50: G/unit | AD50: $/unit | AF50: $/$ | AH50: 0 | AI50: 1 | AJ50: 2 | AK50: L
F51: 0 | G51: =3*G43/Term2 -> 0 | H51: 0
F52: 1 | G52: =3*G44/Term2 -> -7.011357754e-09 | H52: 1
E53: Maturing > | F53: 2 | G53: =3*G45/Term2 -> 7.011357754e-09 | H53: 2 | S53: =S55-U53 -> -2290569.098 | U53: =-SUM(V53:X53) -> 2290569.098 | V53: =V$49*AI4 -> -900935.0152 | W53: =W$49*AJ4 -> -858594.9961 | X53: =X$49*AK4 -> -531039.0865 | AF53: =AF55-AH53 -> -4445765.015 | AH53: =-SUM(AI53:AK53) -> 4445765.015 | AI53: =AI$49*AI4 -> -1748624.556 | AJ53: =AJ$49*AJ4 -> -1666446.823 | AK53: =AK$49*AK4 -> -1030693.636
E54: Principal | F54: L | G54: =3*G46/Term2 -> -23260.10002 | H54: L | S54: ¡ | T54: YU | U54: 0 | V54: 1 | W54: 2 | X54: L | AF54: u | AG54: PU | AH54: 0 | AI54: 1 | AJ54: 2 | AK54: L | AM54: PU
R55: 0 | S55: =U55-U55 -> 0 | T55: 0 | U55: =-U53-SUM(U56:U58) -> -632852.3501 | V55: =V$49*AI6 -> 345831.9581 | W55: 301290.1646 | X55: 86427.10508 | Y55: 0 | AF55: =AH55-AH55 -> 0 | AG55: 0 | AH55: =-AH53-SUM(AH56:AH58) -> -1228302.975 | AI55: =AI$49*AI6 -> 671225.1649 | AJ55: 584774.0086 | AK55: 167746.3476 | AL55: 0 | AN55: 0
R56: 1 | S56: =V55-U56 -> 1212527.732 | T56: 1 | U56: =-SUM(V56:X56) -> -866695.7736 | V56: 280521.8552 | W56: 293521.1601 | X56: 292652.7584 | Y56: 1 | Z56: Interaction | AE56: Interaction | AF56: =AI55-AH56 -> 2353394.785 | AG56: 1 | AH56: =-SUM(AI56:AK56) -> -1682169.62 | AI56: 544464.8018 | AJ56: 569695.1495 | AK56: 568009.6689 | AL56: 1 | AM56: =AI56*AJ56*AK56 -> 1.761846464e+17 | AN56: 1
R57: 2 | S57: =W55-U57 -> 1051580.524 | T57: 2 | U57: =-SUM(V57:X57) -> -750290.359 | V57: 249262.3281 | W57: 248371.9302 | X57: 252656.1007 | Y57: 2 | Z57: < of Utility | AE57: of Utility > | AF57: =AJ55-AH57 -> 2041012.387 | AG57: 2 | AH57: =-SUM(AI57:AK57) -> -1456238.379 | AI57: 483793.1931 | AJ57: 482065.0201 | AK57: 490380.1655 | AL57: 2 | AM57: =AI57*AJ57*AK57 -> 1.14366352e+17 | AN57: 2
R58: L | S58: =X55+X58-U58 -> 26460.84249 | T58: L | U58: =-SUM(V58:W58) -> -40730.61506 | V58: 25318.87387 | W58: 15411.74119 | X58: -100696.8776 | Y58: L | Z58: with Values | AE58: with Prices | AF58: =AK55+AK58-AH58 -> 51357.84288 | AG58: L | AH58: =-SUM(AI58:AJ58) -> -79054.04105 | AI58: 49141.39625 | AJ58: 29912.6448 | AK58: -195442.5458 | AL58: L | AM58: =AI58*AJ58 -> 1469949131 | AN58: L
E59: - i | G59: Domestic
E60: =-I63/I60-V0_2 -> 0.09952527425 | F60: < | G60: Interest | I60: =-I20-I21 -> 75425.05318 | J60: < Asset Valuations, a | AH60: - PU
E61: -0.1 | G61: Rate | I61: 0
Q62: =IF(AF62/AF$49<AF53,AF62/AF$49-AF53,0) -> 0 | S62: =IF(AF62/AF$49>AF53,AF62/AF$49-AF53,0) -> 162.8608475 | U62: =AH62/AH$49-U53 -> 22.83167032 | V62: =AI62/AI$49-AI4 -> 1.495275913 | W62: =AJ62/AJ$49-AJ4 -> -29.4967117 | X62: =AK62/AK$49-AK4 -> 89.96917994 | AF62: =AF64-AH62 -> -4445809.329 | AH62: =-SUM(AI62:AK62) -> 4445809.329 | AI62: =-SUM(AI64:AI67) -> -1747360.945 | AJ62: =-SUM(AJ64:AJ67) -> -1669476.4 | AK62: =-SUM(AK64:AK67) -> -1028971.984
E63: Supply Valuations, YS | H63: > | I63: =-SUM(J63:K63) -> -82931.75228 | J63: =V49*V73 -> 43670.46272 | K63: =W49*W73 -> 39261.28957 | R63: -f | T63: Q | U63: 0 | V63: 1 | W63: 2 | X63: L | AF63: hz | AG63: Hz | AH63: 0 | AI63: 1 | AJ63: 2 | AK63: L
I64: 0 | J64: 1 | K64: 2 | P64: 0 | Q64: =IF(AF64/AF$49<AF55,AF64/AF$49-AF55,0) -> 0 | R64: 0 | S64: =IF(AF64/AF$49>AF55,AF64/AF$49-AF55,0) -> 0 | T64: 0 | U64: =AH64/AH$49-U55 -> 102700.3018 | V64: =AI64/AI$49-AI6 -> -100.3524596 | W64: -742.2733926 | X64: -8766 | Y64: 0 | AE64: 0 | AF64: =AH64-AH64 -> 0 | AG64: 0 | AH64: =-AH62-SUM(AH65:AH67) -> -1028971.984 | AI64: =V6*$AM28 -> 586420.4034 | AJ64: =W6*$AM29 -> 508535.8592 | AK64: =X6*$AM30 -> 0 | AL64: 0
P65: 1 | Q65: =AF65/AF$49-AF56 -> -7822.480119 | R65: 1 | T65: 1 | U65: =AH65/AH$49-U56 -> -39719.5114 | V65: 49.6475404 | W65: 162.8411902 | X65: 962.09844 | Y65: 1 | Z65: Optimal | AE65: 1 | AF65: =S7*$AM28 -> 2345681.614 | AG65: 1 | AH65: =U7*$AM28 -> -1759261.21 | AI65: 586420.4034 | AJ65: 586420.4034 | AK65: 586420.4034 | AL65: 1
I66: NPV | J66: 1 | P66: 2 | Q66: =AF66/AF$49-AF57 -> -6963.741474 | R66: 2 | T66: 2 | U66: =AH66/AH$49-U57 -> -35740.74273 | V66: 29.27886781 | W66: 257.7266074 | X66: 948.7706514 | Y66: 2 | Z66: < Rates of | AE66: 2 | AF66: =S8*$AM29 -> 2034143.437 | AG66: 2 | AH66: -1525607.578 | AI66: 508535.8592 | AJ66: 508535.8592 | AK66: 508535.8592 | AL66: 2
E67: Investment | G67: =LN(1+E60)*(1+E60)^Term2-E60*Kappa2/Gamma2 -> 0.2766981222 | I67: =1/(1-E60*Term2*Kappa2/Gamma2) -> 0.6143155128 | J67: 1+iTk/g | P67: L | Q67: 0 | R67: L | S67: =AF67/AF$49-AF58 -> 14623.36075 | T67: L | U67: =AH67/AH$49-U58 -> -27262.87931 | V67: 19.93077548 | W67: 351.2023067 | X67: 6765.161729 | Y67: L | Z67: Change | AE67: L | AF67: =S9*$AM30 -> 65984.2785 | AG67: L | AH67: -131968.557 | AI67: 65984.2785 | AJ67: 65984.2785 | AK67: -65984.2785 | AL67: L
E68: Term | I68: 0.5131581182
E69: Calculation | G69: =Term2-(1/I69-1/NPV_2)/G67 -> 5.135519815 | I69: =1/(1+E60)^Term2 -> 0.6143101044 | J69: 1 | Z69: Domestic
I70: NPV | J70: (1 - i)T | Q70: =SUM(Q65:Q67) -> -14786.22159 | S70: =SUM(S65:S67) -> 14623.36075 | T70: D | U70: =SUM(U65:U67) -> -102723.1334 | V70: =SUM(V65:V67) -> 98.85718369 | W70: =SUM(W65:W67) -> 771.7701043 | X70: =SUM(X65:X66) -> 1910.869091 | Z70: < Demand
U71: 0 | V71: 1 | W71: 2 | X71: L
Z72: Domestic
Q73: =Q45+Q14 -> -14605.86281 | S73: =S45+S14 -> 14605.86281 | T73: S | U73: =U45+U14 -> -102650.1475 | V73: =V45+V14 -> 100.2994807 | W73: =W45+W14 -> 741.9236488 | X73: =X45+Z22+X14 -> 2001.614223 | Z73: < Supply | AD73: =-AH73 -> 0 | AF73: 0 | AH73: =-SUM(AI73:AK73) -> 0
U74: 0 | V74: 1 | W74: 2 | X74: L | AE74: Transfers | AG74: FI | AH74: 0 | AI74: 1 | AJ74: 2 | AK74: L
E75: Domestic | G75: T | AC75: 0 | AD75: =AH75-AH75 -> 0 | AE75: 0 | AF75: 0 | AG75: 0 | AH75: =-SUM(AI75:AK75) -> 0 | AI75: 0 | AJ75: 0 | AK75: 0 | AL75: 0
E76: Investment | F76: > | G76: 5.135571609 | Z76: Demand | AC76: 1 | AD76: =AI75-AH76 -> -1.028932416 | AE76: 1 | AF76: -1.272988639e-09 | AG76: 1 | AH76: =-SUM(AI76:AK76) -> 1.028932416 | AI76: 0 | AJ76: =(AF45-AF44)*(V0-Iota)*(E20+E21) -> -1.028932416 | AL76: 1 | AM76: Equity
E77: Term | G77: =ITerm -> 7 | T77: F | U77: ='Econ 0'!U20 -> 0.9995413493 | V77: ='Econ 0'!V20 -> 0.9996962442 | W77: ='Econ 0'!W20 -> 0.9996801252 | X77: ='Econ 0'!X20 -> 0.9997480899 | Z77: < Factors | AC77: 2 | AD77: =AJ75-AH77 -> 1.028932416 | AE77: 2 | AF77: 1.272988639e-09 | AG77: 2 | AH77: =-SUM(AI77:AK77) -> -1.028932416 | AI77: =-AJ76 -> 1.028932416 | AJ77: 0 | AL77: 2 | AM77: < Markets
U78: 0 | V78: 1 | W78: 2 | X78: L | AC78: L | AD78: =AK75-AH78 -> 0 | AE78: L | AF78: 0 | AG78: L | AH78: =-SUM(AI78:AK78) -> 0 | AL78: L
R80: International Settlements | Z80: imports ( - ) | AE80: Trade Balance
E81: =P0_2*'Econ 0'!M50 -> 400.6923838 | G81: =P0_2*'Econ 0'!O50 -> 0 | I81: =I25+DT*(U81-I$9*I25*3) -> 8.989222039 | J81: =J25+DT*(V81-J$9*J25*3) -> 4.880569465 | K81: =K25+DT*(W81-K$9*K25*3) -> -29.60824651 | L81: =L25+DT*(X81-L$9*L25*3) -> 30.38430114 | Q81: =AD81-Q17 -> -10.28576531 | S81: =AF81-S17 -> 0 | U81: ='Econ 0'!U36 -> 25.87186939 | V81: ='Econ 0'!V36 -> 1.472325463 | W81: ='Econ 0'!W36 -> -29.59958561 | X81: ='Econ 0'!X36 -> 91.22649836 | Z81: < eXports ( + ) | AD81: =IF(AH81>0,-AH81,0) -> -50.21470512 | AF81: =IF(AH81<0,-AH81,0) -> 0 | AH81: =P0_2*U81 -> 50.21470512 | AI81: =AI$49*V81 -> 1244.216736 | AJ81: =AJ$49*W81 -> -3040.1435 | AK81: =AK$49*X81 -> 1745.712059
H82: A | I82: 0 | J82: 1 | K82: 2 | L82: L | R82: r | T82: R | U82: 0 | V82: 1 | W82: 2 | X82: L | AE82: - NCF | AG82: PR | AH82: 0 | AI82: 1 | AJ82: 2 | AK82: L
D83: 0 | E83: =E27+DT*(Q83-Iota2*E19) -> 0 | F83: 0 | G83: =G27+DT*(S83-Nu_2*G19+G51-3*G27/Term2) -> 0 | H83: 0 | I83: =I27+DT*(U83-I$9*I27*3) -> 34216.26812 | J83: -334.2585617 | K83: -741.8940193 | L83: -2922 | M83: 0 | P83: 0 | Q83: 0 | R83: 0 | S83: =AF75+AF83 -> 0 | T83: 0 | U83: =-U81-SUM(U84:U86) -> 102650.1475 | V83: =-Z20 -> -100.2994807 | W83: =-Z21 -> -741.9236488 | X83: =-AK6 -> -8766 | Y83: 0 | Z83: < Output ( - ) | AC83: 0 | AD83: 0 | AE83: 0 | AF83: 0 | AG83: 0 | AH83: =-SUM(AI83:AK83) -> 199265.1472 | AI83: =-AI81-SUM(AI84:AI86) -> -84759.99066 | AJ83: =-AJ81-SUM(AJ84:AJ86) -> -76202.22755 | AK83: =-AK81-SUM(AK84:AK86) -> -38302.92895 | AL83: 0
D84: 1 | E84: =E28+DT*(Q84-Iota2*E20) -> 77408.14532 | F84: 1 | G84: =G28+DT*(S84-Nu_2*G20+G52-3*G28/Term2) -> -1.346097613e-08 | H84: 1 | I84: -13233.72077 | J84: 165.4128621 | K84: 162.7824525 | L84: 320.6223889 | M84: 1 | P84: 1 | Q84: =AD76+AD84 -> -7692.161498 | R84: 1 | S84: =AF76+AF84 -> -1.272988639e-09 | T84: 1 | U84: =U$77*U65 -> -39701.29401 | V84: 49.63245967 | W84: 162.7891014 | X84: 961.8560777 | Y84: 1 | AC84: 1 | AD84: =AI83-AH84 -> -7691.132566 | AE84: 1 | AF84: 0 | AG84: 1 | AH84: =-SUM(AI84:AK84) -> -77068.8581 | AI84: =AI$49*V84 -> 41942.85742 | AJ84: 16719.90395 | AK84: 18406.09673 | AL84: 1 | AM84: Monetary
D85: 2 | E85: =E29+DT*(Q85-Iota2*E21) -> 68946.18625 | F85: 2 | G85: =G29+DT*(S85-Nu_2*G21+G53-3*G29/Term2) -> 1.346097613e-08 | H85: 2 | I85: -11908.06813 | J85: 97.54640393 | K85: 257.6345568 | L85: 316.1799172 | M85: 2 | P85: 2 | Q85: =AD77+AD85 -> -6852.556265 | R85: 2 | S85: 1.272988639e-09 | T85: 2 | U85: -35724.35021 | V85: 29.26997418 | W85: 257.6441672 | X85: 948.5316465 | Y85: 2 | Z85: < Rates of | AC85: 2 | AD85: =AJ83-AH85 -> -6853.585198 | AE85: 2 | AF85: 0 | AG85: 2 | AH85: =-SUM(AI85:AK85) -> -69348.64236 | AI85: 24735.15038 | AJ85: 26462.37182 | AK85: 18151.12016 | AL85: 2 | AM85: < Transactions
D86: L | E86: =E30+DT*(Q86-Iota2*E22) -> 0 | F86: L | G86: =G30+DT*(S86-Nu_2*G22+G54-3*G30/Term2) -> -39831.40907 | H86: L | I86: -9083.468443 | J86: 66.4187262 | K86: 351.0852566 | L86: 2254.813393 | M86: L | P86: L | Q86: 0 | R86: L | S86: =AF78+AF86 -> 14594.93247 | T86: L | U86: =U$77*U67 -> -27250.37517 | V86: =V$77*V67 -> 19.92472139 | W86: =W$77*W67 -> 351.0899659 | X86: =-X81-SUM(X83:X85) -> 6764.385777 | Y86: L | Z86: Change | AC86: L | AD86: 0 | AE86: L | AF86: =AK83-AH86 -> 14594.93247 | AG86: L | AH86: =-SUM(AI86:AK86) -> -52897.86142 | AI86: =AI$49*V86 -> 16837.76613 | AJ86: =AJ$49*W86 -> 36060.09529 | AK86: 0 | AL86: L
Q87: Debt Service | S87: Passive Income | AD87: Cost of Sales | AF87: Consumption | AH87: - s
AD88: Minus Sales | AF88: Minus Wages
G89: =P0_2*'Econ 0'!O55 -> 0 | I89: =I33+DT*I$9*3*(I25-I33) -> 9.383043291 | J89: =J33+DT*J$9*3*(J25-J33) -> 4.839361383 | K89: =K33+DT*K$9*3*(K25-K33) -> -29.61774749 | L89: =L33+DT*L$9*3*(L25-L33) -> 30.3573929 | Q89: =GPE!A8 -> 0 | S89: =GPE!C8 -> -0.2886111448 | U89: =GPE!E8 -> 0 | V89: =GPE!F8 -> 0 | W89: =GPE!G8 -> 0 | X89: =GPE!H8 -> 0
H90: B | I90: 0 | J90: 1 | K90: 2 | L90: L | R90: r | T90: R | U90: 0 | V90: 1 | W90: 2 | X90: L
F91: 0 | G91: =G35+DT*3*(G27-G35)/Term2 -> 0 | H91: 0 | I91: =I35+DT*I$9*3*(I27-I35) -> 34215.78356 | J91: -334.1486419 | K91: -741.8617801 | L91: -2922 | M91: 0 | P91: 0 | Q91: =GPE!C10 -> 0 | R91: 0 | S91: =GPE!A10 -> 0 | T91: 0 | U91: =GPE!E10 -> 104588.8261 | V91: =GPE!F10 -> -100 | W91: =GPE!G10 -> -750 | X91: =GPE!H10 -> -8766 | Y91: 0
F92: 1 | G92: =G36+DT*3*(G28-G36)/Term2 -> -1.273471677e-08 | H92: 1 | I92: -13233.67308 | J92: 165.3672811 | K92: 162.7751725 | L92: 320.6265967 | M92: 1 | P92: 1 | Q92: =GPE!C11 -> -8035.153798 | R92: 1 | S92: =GPE!A11 -> 0 | T92: 1 | U92: =GPE!E11 -> -40175.76899 | V92: =GPE!F11 -> 50 | W92: =GPE!G11 -> 150 | X92: =GPE!H11 -> 1000 | Y92: 1
F93: 2 | G93: =G37+DT*3*(G29-G37)/Term2 -> 1.273471677e-08 | H93: 2 | I93: -11908.01531 | J93: 97.51629165 | K93: 257.6239583 | L93: 316.1830263 | M93: 2 | P93: 2 | Q93: =GPE!C12 -> -7344.632768 | R93: 2 | S93: =GPE!A12 -> 0 | T93: 2 | U93: =GPE!E12 -> -36723.16384 | V93: =GPE!F12 -> 30 | W93: =GPE!G12 -> 250 | X93: =GPE!H12 -> 1000 | Y93: 2
F94: L | G94: =G38+DT*3*(G30-G38)/Term2 -> -39825.2147 | H94: L | I94: -9083.478208 | J94: 66.42570773 | K94: 351.0803967 | L94: 2254.832984 | M94: L | P94: L | Q94: =GPE!A13 -> 0 | R94: L | S94: =GPE!C13 -> 15379.78657 | T94: L | U94: =GPE!E13 -> -27689.89328 | V94: =GPE!F13 -> 20 | W94: =GPE!G13 -> 350 | X94: =GPE!H13 -> 6766 | Y94: L
C95: System State
C96: @ time = t + d >
G97: =P0_2*'Econ 0'!O60 -> 0 | I97: =I41+DT*I$9*3*(I33-I41) -> 9.794385175 | J97: =J41+DT*J$9*3*(J33-J41) -> 4.779999684 | K97: =K41+DT*K$9*3*(K33-K41) -> -29.62813327 | L97: =L41+DT*L$9*3*(L33-L41) -> 30.3291933 | S97: u
H98: C | I98: 0 | J98: 1 | K98: 2 | L98: L | S98: (h/w-1)
F99: 0 | G99: =G43+DT*3*(G35-G43)/Term2 -> 0 | H99: 0 | I99: =I43+DT*I$9*3*(I35-I43) -> 34215.27945 | J99: -333.9882324 | K99: -741.8271778 | L99: -2922 | M99: 0 | T99: 0
F100: 1 | G100: =G44+DT*3*(G36-G44)/Term2 -> -1.200669615e-08 | H100: 1 | I100: -13233.62411 | J100: 165.2958723 | K100: 162.7673521 | L100: 320.6309885 | M100: 1 | S100: =AF56/(S7/S28-1) -> -7703.987514 | T100: 1
F101: 2 | G101: =G45+DT*3*(G37-G45)/Term2 -> 1.200669615e-08 | H101: 2 | I101: -11907.96077 | J101: 97.47654118 | K101: 257.6124376 | L101: 316.1862716 | M101: 2 | S101: =AF57/(S8/S29-1) -> -6861.862285 | T101: 2
F102: L | G102: =G46+DT*3*(G38-G46)/Term2 -> -39818.01187 | H102: L | I102: -9083.488953 | J102: 66.43581928 | K102: 351.0755213 | L102: 2254.853547 | M102: L | S102: =AF58/(S9/S30-1) -> 14608.91814 | T102: L
L105: =L49+DT*S105 -> -10213.33088 | S105: =(S102-S22)/AK49/(1-Z30) -> 0.2410714379 | T105: < | U105: ∂ZL/∂t
L106: -10219.74286

Sheet Series
B4: BUFFER ->
C5: =TicToc -> 30.00059128 | D5: ='Econ 1'!W45 -> 825.7073545 | E5: ='Econ 1'!W70 -> 796.3625052 | F5: ='Econ 2'!W45 -> 741.9236488 | G5: ='Econ 2'!W70 -> 771.7701043 | H5: =-Iota -> 0.1022012686 | I5: =-Iota1 -> 0.1047529853 | J5: =-Iota2 -> 0.09952527425 | K5: ='Econ 1'!S49 -> 0.4643367227 | L5: ='Econ 2'!S49 -> 0.5152489696 | M5: =-IState!J55 -> 10219.74286 | N5: =-Zl_1 -> 10278.62371 | O5: =-Zl_2 -> 10213.33329 | P5: =GPE!H13 -> 6766 | Q5: ='Econ 1'!X22 -> 6822.4142 | R5: ='Econ 2'!X22 -> 6764.501691 | S5: ='Econ 1'!AJ49 -> 113.958576 | T5: ='Econ 1'!AJ43 -> 113.956284 | U5: ='Econ 1'!AJ44 -> 113.9584684 | V5: ='Econ 1'!AJ46 -> 113.9771836 | W5: =GPE!G$18 -> 107.7212806 | X5: ='Econ 1'!AD81+'Econ 1'!AF81 -> 55.71465917 | Y5: ='Econ 2'!AD81+'Econ 2'!AF81 -> -50.21470512 | Z5: ='Econ 1'!Q17+'Econ 1'!S17 -> 68.53895003 | AA5: ='Econ 2'!Q17+'Econ 2'!S17 -> -39.92893981
A7: BOX: | C7: year | D7: S1 | E7: D1 | F7: S2 | G7: D2 | H7: i Gbl | I7: i E1 | J7: i E2 | K7: 1/P01 | L7: 1/P02 | M7: -ZL | N7: -ZL1 | O7: -ZL2 | P7: -YL | Q7: -YL1 | R7: -YL2 | S7: P2 | T7: MC2 | U7: VMP1 | V7: VMPL | W7: P* | X7: r1 | Y7: r2 | Z7: e1 | AA7: e2
A8: 0 | C8: 0 | D8: 764.0286566 | E8: 846.4082834 | F8: 750 | G8: 754.4586324 | H8: 0.1045834294 | I8: 0.1094932694 | J8: 0.09967358933 | K8: 0.4566490731 | L8: 0.501637398 | M8: 10219.74286 | N8: 10219.74286 | O8: 10219.74286 | P8: 6766 | Q8: 6766 | R8: 6766 | S8: 117.6119666 | T8: 115.7818666 | U8: 117.947552 | V8: 117.947552 | W8: 107.7212806 | X8: -14258.17147 | Y8: 13011.43944 | Z8: 0 | AA8: 0
A9: =1+A8 -> 1 | C9: 1.009999394 | D9: 812.5048929 | E9: 819.4299027 | F9: 736.2808959 | G9: 772.3079057 | H9: 0.1007258134 | I9: 0.0808614089 | J9: 0.1224660105 | K9: 0.6381149924 | L9: 0.4019265474 | M9: 10219.74286 | N9: 10242.85846 | O9: 10246.70864 | P9: 6766 | Q9: 6761.199117 | R9: 6759.317292 | S9: 85.8097214 | T9: 85.6043346 | U9: 86.09566167 | V9: 87.66395848 | W9: 107.7212806 | X9: -2179.528383 | Y9: 3332.948643 | Z9: 589.0197827 | AA9: -1014.226355
A10: 2 | C10: 2.01999855 | D10: 818.3355251 | E10: 809.8783063 | F10: 736.425248 | G10: 771.7235701 | H10: 0.1018003049 | I10: 0.09015454199 | J10: 0.1143930453 | K10: 0.5638201739 | L10: 0.4362360562 | M10: 10219.74286 | N10: 10255.20334 | O10: 10280.63631 | P10: 6766 | Q10: 6768.818741 | R10: 6765.112582 | S10: 95.82884716 | T10: 95.94434988 | U10: 95.82070388 | V10: 95.48382593 | W10: 107.7212806 | X10: -907.2492297 | Y10: 1145.278595 | Z10: 916.7561415 | AA10: -1097.053495
A11: 3 | C11: 3.029997587 | D11: 820.7607392 | E11: 804.7577962 | F11: 737.1686524 | G11: 771.963854 | H11: 0.1022514095 | I11: 0.09648578328 | J11: 0.1084179822 | K11: 0.5206328666 | L11: 0.465819587 | M11: 10219.74286 | N11: 10246.81293 | O11: 10296.70707 | P11: 6766 | Q11: 6775.539205 | R11: 6779.119478 | S11: 102.9622821 | T11: 103.0644693 | U11: 102.9315284 | V11: 101.947729 | W11: 107.7212806 | X11: -146.1476595 | Y11: 161.1658165 | Z11: 1129.578413 | AA11: -1044.943516
A12: 4 | C12: 4.039997578 | D12: 822.2547937 | E12: 801.50947 | F12: 737.9916105 | G12: 772.3915981 | H12: 0.1023082104 | I12: 0.09962621375 | J12: 0.1051593943 | K12: 0.5006706935 | L12: 0.4840133398 | M12: 10219.74286 | N12: 10237.30265 | O12: 10296.90363 | P12: 6766 | Q12: 6776.233758 | R12: 6790.134085 | S12: 106.6443163 | T12: 106.7198367 | U12: 106.6027342 | V12: 106.0551624 | W12: 107.7212806 | X12: 406.0293826 | Y12: -416.5737257 | Z12: 1194.910563 | AA12: -961.1985508 | AE12: b2 | AF12: Z2 | AG12: b1-2-L | AH12: U1-2-L
A13: 5 | C13: 5.050020695 | D13: 823.1970929 | E13: 799.7064052 | F13: 738.8505333 | G13: 772.566937 | H13: 0.1022880282 | I13: 0.1013861391 | J13: 0.1032431028 | K13: 0.4895241915 | L13: 0.4954515726 | M13: 10219.74286 | N13: 10233.27581 | O13: 10288.44135 | P13: 6766 | Q13: 6775.596038 | R13: 6795.34315 | S13: 108.8084237 | T13: 108.8583065 | U13: 108.7628694 | V13: 108.7612248 | W13: 107.7212806 | X13: 668.2486322 | Y13: -656.7826991 | Z13: 1172.500815 | AA13: -865.7471684 | AE13: ='Econ 1'!AF29 -> 566851.9053 | AF13: ='Econ 1'!AM8 -> 5800 | AG13: ='Econ 1'!AF28+'Econ 1'!AF29+'Econ 1'!AF30 -> 1290878.569 | AH13: ='Econ 1'!AJ7+'Econ 1'!AJ8+'Econ 1'!AJ9 -> 10531.43283
A14: 6 | C14: 6.060043812 | D14: 823.8343135 | E14: 798.7217077 | F14: 739.5637828 | G14: 772.556234 | H14: 0.1022668772 | I14: 0.102439987 | J14: 0.1020840236 | K14: 0.4826541835 | L14: 0.5026040821 | M14: 10219.74286 | N14: 10233.90732 | O14: 10277.19275 | P14: 6766 | Q14: 6776.450847 | R14: 6795.971386 | S14: 110.177829 | T14: 110.2083057 | U14: 110.1356752 | V14: 110.449369 | W14: 107.7212806 | X14: 746.71129 | Y14: -714.5264266 | Z14: 1107.388683 | AA14: -773.3410015 | AE14: INITIAL | AF14: INITIAL
A15: 7 | C15: 7.070066929 | D15: 824.2897203 | E15: 798.1269689 | F15: 740.0810959 | G15: 772.4720218 | H15: 0.102254717 | I15: 0.1031221787 | J15: 0.1013399903 | K15: 0.4780435781 | L15: 0.5072126425 | M15: 10219.74286 | N15: 10236.88204 | O15: 10266.35079 | P15: 6766 | Q15: 6779.042854 | R15: 6794.018584 | S15: 111.1141186 | T15: 111.1310657 | U15: 111.0794883 | V15: 111.4998368 | W15: 107.7212806 | X15: 740.4208687 | Y15: -696.1193426 | Z15: 1025.572145 | AA15: -688.8789032 | AD15: Q1 | AE15: s | AF15: d | AG15: S | AH15: D
A16: 8 | C16: 8.080089569 | D16: 824.6286522 | E16: 797.7138847 | F16: 740.4351047 | G16: 772.3764098 | H16: 0.1022480355 | I16: 0.1036024829 | J16: 0.100821508 | K16: 0.4747072092 | L16: 0.5103503124 | M16: 10219.74286 | N16: 10240.62549 | O16: 10257.09204 | P16: 6766 | Q16: 6782.639129 | R16: 6791.005262 | S16: 111.8032207 | T16: 111.810695 | U16: 111.7769091 | V16: 112.2002476 | W16: 107.7212806 | X16: 703.6617632 | Y16: -653.3991972 | Z16: 939.2664063 | AA16: -612.7660183 | AD16: 700 | AE16: 106.6426664 | AF16: 108.2008333 | AG16: =$AE$13/($AF$13-AD16) -> 111.1474324 | AH16: =$AG$13/($AH$13+AD16) -> 114.9344512
A17: 9 | C17: 9.090112686 | D17: 824.8866606 | E17: 797.4038648 | F17: 740.6767865 | G17: 772.288828 | H17: 0.102244149 | I17: 0.1039613878 | J17: 0.1004371408 | K17: 0.4721693127 | L17: 0.5125771801 | M17: 10219.74286 | N17: 10244.45665 | O17: 10249.5385 | P17: 6766 | Q17: 6786.550325 | R17: 6787.788183 | S17: 112.335076 | T17: 112.335814 | U17: 112.3160048 | V17: 112.7088719 | W17: 107.7212806 | X17: 657.5398737 | Y17: -605.0121354 | Z17: 853.5623832 | AA17: -544.2074473 | AD17: =10+AD16 -> 710 | AE17: 106.8566577 | AF17: 108.1045815 | AG17: 111.3657967 | AH17: 114.8322094
A18: 10 | C18: 10.1001358 | D18: 825.083961 | E18: 797.169684 | F18: 740.8466695 | G18: 772.210866 | H18: 0.1022420247 | I18: 0.1042349368 | J18: 0.1001463712 | K18: 0.4702019732 | L18: 0.5141657555 | M18: 10219.74286 | N18: 10248.16512 | O18: 10243.42601 | P18: 6766 | Q18: 6790.398353 | R18: 6784.746851 | S18: 112.7517226 | T18: 112.7477405 | U18: 112.7382653 | V18: 113.0943521 | W18: 107.7212806 | X18: 607.9862413 | Y18: -555.6052373 | Z18: 770.736856 | AA18: -482.4300746 | AD18: =10+AD17 -> 720 | AE18: 107.0715096 | AF18: 108.0085008 | AG18: 111.5850207 | AH18: 114.7301493
A19: 11 | C19: 11.11015892 | D19: 825.2338335 | E19: 796.9963969 | F19: 740.9711398 | G19: 772.1407871 | H19: 0.1022410098 | I19: 0.1044408784 | J19: 0.09992896208 | K19: 0.4686828734 | L19: 0.5152668005 | M19: 10219.74286 | N19: 10251.68937 | O19: 10238.43713 | P19: 6766 | Q19: 6794.034955 | R19: 6782.002462 | S19: 113.0754483 | T19: 113.0683351 | U19: 113.066112 | V19: 113.3850046 | W19: 107.7212806 | X19: 556.676773 | Y19: -506.1535137 | Z19: 692.1266582 | AA19: -426.8807272 | AD19: 730 | AE19: 107.2872272 | AF19: 107.9125907 | AG19: 111.8051095 | AH19: 114.6282705
A20: 12 | C20: 12.12018204 | D20: 825.3465801 | E20: 796.8700979 | F20: 741.066809 | G20: 772.0778008 | H20: 0.1022404258 | I20: 0.1045914073 | J20: 0.0997705806 | K20: 0.467526459 | L20: 0.5159901395 | M20: 10219.74286 | N20: 10254.99133 | O20: 10234.31624 | P20: 6766 | Q20: 6797.414871 | R20: 6779.566285 | S20: 113.3224429 | T20: 113.3134512 | U20: 113.3160624 | V20: 113.5978112 | W20: 107.7212806 | X20: 504.9431512 | Y20: -457.4482616 | Z20: 618.6599969 | AA20: -377.1231177 | AD20: 740 | AE20: 107.5038158 | AF20: 107.8168508 | AG20: 112.0260682 | AH20: 114.5265724
A21: 13 | C21: 13.13020515 | D21: 825.4307651 | E21: 796.7778135 | F21: 741.1445056 | G21: 772.0219918 | H21: 0.1022397056 | I21: 0.1046974002 | J21: 0.09965858099 | K21: 0.4666598617 | L21: 0.5164289276 | M21: 10219.74286 | N21: 10258.03698 | O21: 10230.88166 | P21: 6766 | Q21: 6800.524436 | R21: 6777.415659 | S21: 113.5072583 | T21: 113.4973358 | U21: 113.502973 | V21: 113.7482623 | W21: 107.7212806 | X21: 454.2802752 | Y21: -410.5066554 | Z21: 550.9231867 | AA21: -332.7406861 | AD21: 750 | AE21: 107.7212806 | AF21: 107.7212806 | AG21: 112.247902 | AH21: 114.4250547
A22: 14 | C22: 14.14022827 | D22: 825.493411 | E22: 796.7090568 | F22: 741.2114078 | G22: 771.9735393 | H22: 0.1022385264 | I22: 0.1047688266 | J22: 0.09958181653 | K22: 0.4660190956 | L22: 0.5166614954 | M22: 10219.74286 | N22: 10260.80425 | O22: 10228.00536 | P22: 6766 | Q22: 6803.358732 | R22: 6775.523441 | S22: 113.6431639 | T22: 113.6329894 | U22: 113.640345 | V22: 113.8510935 | W22: 107.7212806 | X22: 406.0024372 | Y22: -366.2526716 | Z22: 489.1707099 | AA22: -293.3019889 | AD22: 760 | AE22: 107.939627 | AF22: 107.6258797 | AG22: 112.4706161 | AH22: 114.3237167
A23: 15 | C23: 15.15025139 | D23: 825.5400604 | E23: 796.6562729 | F23: 741.2721083 | G23: 771.932324 | H23: 0.1022367982 | I23: 0.1048142749 | J23: 0.09953109184 | K23: 0.4655503287 | L23: 0.5167499515 | M23: 10219.74286 | N23: 10263.2874 | O23: 10225.59187 | P23: 6766 | Q23: 6805.919065 | R23: 6773.865116 | S23: 113.7415877 | T23: 113.7316186 | U23: 113.7397765 | V23: 113.9190329 | W23: 107.7212806 | X23: 361.0114541 | Y23: -325.3061312 | Z23: 433.3774961 | AA23: -258.3641776 | AD23: 770 | AE23: 108.1588604 | AF23: 107.5306476 | AG23: 112.6942158 | AH23: 114.2225581
A24: 16 | C24: 16.16027451 | D24: 825.5749502 | E24: 796.614363 | F24: 741.3293208 | G24: 771.8978966 | H24: 0.1022345783 | I24: 0.1048407063 | J24: 0.09949923072 | K24: 0.4652103674 | L24: 0.5167410915 | M24: 10219.74286 | N24: 10265.49475 | O24: 10223.56492 | P24: 6766 | Q24: 6808.213784 | R24: 6772.418406 | S24: 113.8118435 | T24: 113.8023671 | U24: 113.8107078 | V24: 113.9621584 | W24: 107.7212806 | X24: 319.7879665 | Y24: -287.9660821 | Z24: 383.3169002 | AA24: -227.4877478 | AD24: 780 | AE24: 108.3789861 | AF24: 107.435584 | AG24: 112.9187062 | AH24: 114.1215784
A25: 17 | C25: 17.17029762 | D25: 825.6012576 | E25: 796.5799667 | F25: 741.3844656 | G25: 771.8695898 | H25: 0.1022319875 | I25: 0.1048535427 | J25: 0.09948080531 | K25: 0.4649656585 | L25: 0.5166690828 | M25: 10219.74286 | N25: 10267.44382 | O25: 10221.86086 | P25: 6766 | Q25: 6810.257502 | R25: 6771.161971 | S25: 113.8612487 | T25: 113.8524277 | U25: 113.8605521 | V25: 113.9880337 | W25: 107.7212806 | X25: 282.4878839 | Y25: -254.2844135 | Z25: 338.6356324 | AA25: -200.2498944 | AD25: 790 | AE25: 108.6000097 | AF25: 107.3406882 | AG25: 113.1440929 | AH25: 114.020777
A26: 18 | C26: 18.18032074 | D26: 825.6213394 | E26: 796.5508683 | F26: 741.4381444 | G26: 771.8466374 | H26: 0.1022291581 | I26: 0.1048569117 | J26: 0.09947176863 | K26: 0.4647906205 | L26: 0.5165584382 | M26: 10219.74286 | N26: 10269.15689 | O26: 10220.42573 | P26: 6766 | Q26: 6812.069066 | R26: 6770.07494 | S26: 113.8954292 | T26: 113.8873391 | U26: 113.8950075 | V26: 114.0021789 | W26: 107.7212806 | X26: 249.0499374 | Y26: -224.1497275 | Z26: 298.9124396 | AA26: -176.2534024 | AD26: 800 | AE26: 108.8219366 | AF26: 107.24596 | AG26: 113.3703811 | AH26: 113.9201536
A27: 19 | C27: 19.19034386 | D27: 825.6369298 | E27: 796.5255983 | F27: 741.4904863 | G27: 771.8282605 | H27: 0.1022262089 | I27: 0.1048539076 | J27: 0.09946912823 | K27: 0.4646659783 | L27: 0.5164265033 | M27: 10219.74286 | N27: 10270.65791 | O27: 10219.21395 | P27: 6766 | Q27: 6813.66941 | R27: 6769.137161 | S27: 113.9186497 | T27: 113.9113069 | U27: 113.9183917 | V27: 114.0085604 | W27: 107.7212806 | X27: 219.2798423 | Y27: -197.3527026 | Z27: 263.6994804 | AA27: -155.1316133 | AD27: 810 | AE27: 109.0447723 | AF27: 107.1513987 | AG27: 113.5975762 | AH27: 113.8197076
A28: 20 | C28: 20.20036697 | D28: 825.6492931 | E28: 796.5031803 | F28: 741.5413763 | G28: 771.8137194 | H28: 0.1022232369 | I28: 0.1048468163 | J28: 0.09947069354 | K28: 0.4645773613 | L28: 0.5162853332 | M28: 10219.74286 | N28: 10271.97066 | O28: 10218.18725 | P28: 6766 | Q28: 6815.079893 | R28: 6768.32967 | S28: 113.9341022 | T28: 113.9274853 | U28: 113.9339351 | V28: 114.0099871 | W28: 107.7212806 | X28: 192.9088595 | Y28: -173.6312347 | Z28: 232.5498043 | AA28: -136.5506128 | AD28: 820 | AE28: 109.2685226 | AF28: 107.0570041 | AG28: 113.8256838 | AH28: 113.7194386
A29: 21 | C29: 21.21039009 | D29: 825.6593411 | E29: 796.4829683 | F29: 741.590596 | G29: 771.8023425 | H29: 0.1022203164 | I29: 0.104837296 | J29: 0.09947488425 | K29: 0.4645141824 | L29: 0.5161430834 | M29: 10219.74286 | N29: 10273.11765 | O29: 10217.31387 | P29: 6766 | Q29: 6816.321214 | R29: 6767.635085 | S29: 113.9441428 | T29: 113.9382081 | U29: 113.9440211 | V29: 114.0084124 | W29: 107.7212806 | X29: 169.6332669 | Y29: -152.7007271 | Z29: 205.0346812 | AA29: -120.2095289 | AD29: 830 | AE29: 109.493193 | AF29: 106.9627757 | AG29: 114.0547093 | AH29: 113.6193461
A30: 22 | C30: 22.22041321 | D30: 825.667723 | E30: 796.4645355 | F30: 741.6379057 | G30: 771.793539 | H30: 0.1022175011 | I30: 0.1048265226 | J30: 0.09948058207 | K30: 0.4644687477 | L30: 0.5160050561 | M30: 10219.74286 | N30: 10274.11955 | O30: 10216.56757 | P30: 6766 | Q30: 6817.412769 | R30: 6767.037815 | S30: 113.9504842 | T30: 113.9451761 | U30: 113.9503809 | V30: 114.0051623 | W30: 107.7212806 | X30: 149.1406471 | Y30: -134.2742449 | Z30: 180.7537282 | AA30: -105.8395438 | AD30: 840 | AE30: 109.7187892 | AF30: 106.868713 | AG30: 114.2846583 | AH30: 113.5194296
A31: 23 | C31: 23.23043633 | D31: 825.6748954 | E31: 796.4475982 | F31: 741.6830896 | G31: 771.7868019 | H31: 0.1022148272 | I31: 0.1048153071 | J31: 0.09948701441 | K31: 0.4644355491 | L31: 0.515874498 | M31: 10219.74286 | N31: 10274.99494 | O31: 10215.92682 | P31: 6766 | Q31: 6818.37232 | R31: 6766.524109 | S31: 113.9543504 | T31: 113.9496086 | U31: 113.9542508 | V31: 114.0011097 | W31: 107.7212806 | X31: 131.1268677 | Y31: -118.0755212 | Z31: 159.3400081 | AA31: -93.20205636 | AD31: 850 | AE31: 109.9453169 | AF31: 106.7748156 | AG31: 114.5155364 | AH31: 113.4196887
A32: 24 | C32: 24.24045944 | D32: 825.6811753 | E32: 796.4319632 | F32: 741.7259783 | G32: 771.7817049 | H32: 0.1022123165 | I32: 0.1048041891 | J32: 0.09949366305 | K32: 0.4644107047 | L32: 0.5157532053 | M32: 10219.74286 | N32: 10275.76026 | O32: 10215.374 | P32: 6766 | Q32: 6819.215869 | R32: 6766.081994 | S32: 113.9566007 | T32: 113.9523652 | U32: 113.956498 | V32: 113.9968072 | W32: 107.7212806 | X32: 115.3063294 | Y32: -103.8467486 | Z32: 140.4617179 | AA32: -82.08633607 | AD32: 860 | AE32: 110.1727819 | AF32: 106.681083 | AG32: 114.7473492 | AH32: 113.3201229
A33: 25 | C33: 25.25048256 | D33: 825.6867798 | E33: 796.4174932 | F33: 741.7664565 | G33: 771.7778958 | H33: 0.1022099795 | I33: 0.1047935105 | J33: 0.09950019361 | K33: 0.4643915239 | L33: 0.5156419762 | M33: 10219.74286 | N33: 10276.4299 | O33: 10214.89478 | P33: 6766 | Q33: 6819.95766 | R33: 6765.70114 | S33: 113.9578266 | T33: 113.9540404 | U33: 113.9577189 | V33: 113.9925866 | W33: 107.7212806 | X33: 101.4173975 | Y33: -91.35259893 | Z33: 123.8216738 | AA33: -72.30693163 | AD33: 870 | AE33: 110.4011901 | AF33: 106.5875149 | AG33: 114.9801025 | AH33: 113.2207318
A34: 26 | C34: 26.26050568 | D34: 825.6918568 | E34: 796.4040848 | F34: 741.8044635 | G34: 771.7750881 | H34: 0.1022078187 | I34: 0.104783472 | J34: 0.09950640209 | K34: 0.4643761739 | L34: 0.5155409439 | M34: 10219.74286 | N34: 10277.01638 | O34: 10214.47742 | P34: 6766 | Q34: 6820.610268 | R34: 6765.372695 | S34: 113.9584265 | T34: 113.955037 | U34: 113.9583145 | V34: 113.9886314 | W34: 107.7212806 | X34: 89.22452402 | Y34: -80.38162754 | Z34: 109.155473 | AA34: -63.70103094 | AD34: 880 | AE34: 110.6305474 | AF34: 106.4941107 | AG34: 115.2138019 | AH34: 113.1215149
A35: 27 | C35: 27.27052879 | D35: 825.6965059 | E35: 796.3916544 | F35: 741.8399875 | G35: 771.7730514 | H35: 0.1022058304 | I35: 0.1047741765 | J35: 0.09951217494 | K35: 0.4643634295 | L35: 0.5154498162 | M35: 10219.74286 | N35: 10277.53051 | O35: 10214.1124 | P35: 6766 | Q35: 6821.184725 | R35: 6765.089111 | S35: 113.9586618 | T35: 113.9556219 | U35: 113.9585478 | V35: 113.9850288 | W35: 107.7212806 | X35: 78.51822488 | Y35: -70.745973 | Z35: 96.22894709 | AA35: -56.12590484 | AD35: 890 | AE35: 110.8608596 | AF35: 106.4008702 | AG35: 115.4484532 | AH35: 113.0224717
A36: 28 | C36: 28.28055191 | D36: 825.7007943 | E36: 796.38013 | F36: 741.8730584 | G36: 771.7716029 | H36: 0.1022040073 | I36: 0.1047656602 | J36: 0.0995174599 | K36: 0.4643524877 | L36: 0.5153680445 | M36: 10219.74286 | N36: 10277.98162 | O36: 10213.79188 | P36: 6766 | Q36: 6821.690677 | R36: 6764.843972 | S36: 113.9586992 | T36: 113.9559671 | U36: 113.9585856 | V36: 113.9818061 | W36: 107.7212806 | X36: 69.11376588 | Y36: -62.28003158 | Z36: 84.83532046 | AA36: -49.45651727 | AD36: 900 | AE36: 111.0921327 | AF36: 106.3077927 | AG36: 115.6840623 | AH36: 112.9236018
A37: 29 | C37: 29.29057503 | D37: 825.7047679 | E37: 796.3694471 | F37: 741.90374 | G37: 771.770599 | H37: 0.1022023394 | I37: 0.1047579163 | J37: 0.09952224493 | K37: 0.4643428338 | L37: 0.5152949416 | M37: 10219.74286 | N37: 10278.37774 | O37: 10213.50948 | P37: 6766 | Q37: 6822.136539 | R37: 6764.631827 | S37: 113.9586406 | T37: 113.9561796 | U37: 113.9585298 | V37: 113.9789552 | W37: 107.7212806 | X37: 60.84915615 | Y37: -54.8385866 | Z37: 74.792335 | AA37: -43.58334562
A38: 30 | C38: 30.00059128 | D38: 825.7073545 | E38: 796.3625052 | F38: 741.9236488 | G38: 771.7701043 | H38: 0.1022012686 | I38: 0.1047529853 | J38: 0.09952527425 | K38: 0.4643367227 | L38: 0.5152489696 | M38: 10219.74286 | N38: 10278.62371 | O38: 10213.33329 | P38: 6766 | Q38: 6822.4142 | R38: 6764.501691 | S38: 113.958576 | T38: 113.956284 | U38: 113.9584684 | V38: 113.9771836 | W38: 107.7212806 | X38: 55.71465917 | Y38: -50.21470512 | Z38: 68.53895003 | AA38: -39.92893981

Sheet GPE
G3: General Equilibrium Prices, $/physical unit
K5: Experimenters are invited to change
K6: any data set in red type that
K7: appears within the marquee.
C8: -0.2886111448 | E8: =E24/E$18 -> 0 | F8: 0 | G8: 0 | H8: 0
C9: r | D9: R | E9: 0 | F9: 1 | G9: 2 | H9: L
C10: =-E24 -> 0 | D10: 0 | E10: =E26/E$18 -> 104588.8261 | F10: =-F8-SUM(F11:F13) -> -100 | G10: =-G8-SUM(G11:G13) -> -750 | H10: =-H8-SUM(H11:H13) -> -8766
C11: =F26-E27 -> -8035.153798 | D11: 1 | E11: =E27/E$18 -> -40175.76899 | F11: 50 | G11: 150 | H11: 1000 | N11: =L18*F11+F10 -> -45 | O11: =L18*G11 -> 165 | Q11: =-L18*H11*H18 -> -22000
C12: =G26-E28 -> -7344.632768 | D12: 2 | E12: =E28/E$18 -> -36723.16384 | F12: 30 | G12: 250 | H12: 1000 | N12: =L18*F12 -> 33 | O12: =L18*G12+G10 -> -475 | Q12: =-L18*H12*H18 -> -22000
C13: =H26-E29 -> 15379.78657 | D13: L | E13: =E29/E$18 -> -27689.89328 | F13: 20 | G13: 350 | H13: 6766 | N13: =F13+L15*(F11+F12) -> 12 | O13: =G13+L15*(G11+G12) -> 310 | Q13: =H18*(-H10-H13-L15*(H11+H12)) -> 44000
L14: i
L15: =-C18 -> -0.1 | N15: =N11*N11+N12*N12+N13*N13 -> 3258 | O15: =N11*O11+N12*O12+N13*O13 -> -19380 | Q15: =N11*Q11+N12*Q12+N13*Q13 -> 792000
N16: =O15 -> -19380 | O16: =O11*O11+O12*O12+O13*O13 -> 348950 | Q16: =O11*Q11+O12*Q12+O13*Q13 -> 20460000
C17: - i | E17: 0 | F17: 1 | G17: 2 | H17: L | L17: 1 - i
C18: 0.1 | D18: P | E18: 2 | F18: =N18/Q18 -> 883.8669178 | G18: =O18/Q18 -> 107.7212806 | H18: 20 | L18: =1-L15 -> 1.1 | N18: =Q15*O16-Q16*O15 -> 672883200000 | O18: =N15*Q16-N16*Q15 -> 8.200764e+10 | Q18: =N15*O16-N16*O15 -> 761294700
C19: Interest Rate | E19: Price of | H19: Wage
E20: Value, $/G | H20: $/hour
E24: =-SUM(F24:H24) -> 0 | F24: =F$18*F8 -> 0 | G24: =G$18*G8 -> 0 | H24: =H$18*H8 -> 0
D25: PR | E25: 0 | F25: 1 | G25: 2 | H25: L
D26: 0 | E26: =-SUM(F26:H26) -> 209177.6522 | F26: =-F24-SUM(F27:F29) -> -88386.69178 | G26: =-G24-SUM(G27:G29) -> -80790.96045 | H26: =-H24-SUM(H27:H29) -> -40000
B27: % return > | C27: =C11/E27 -> 0.1 | D27: 1 | E27: =-SUM(F27:H27) -> -80351.53798 | F27: =F$18*F11 -> 44193.34589 | G27: 16158.19209 | H27: 20000
B28: on asset | C28: =C12/E28 -> 0.1 | D28: 2 | E28: =-SUM(F28:H28) -> -73446.32768 | F28: 26516.00753 | G28: 26930.32015 | H28: 20000
B29: turnover | D29: L | E29: =-SUM(F29:H29) -> -55379.78657 | F29: =F$18*F13 -> 17677.33836 | G29: =G$18*G13 -> 37702.44821 | H29: 0

Sheet Utility
G3: Sectors' Production and Utility Tradeoffs, physical units/year
L5: Sector 1:
N7: p | O7: pq
L8: x > | M8: =-F12 -> 100 | N8: =F19 -> 883.8669178 | O8: =M8*N8 -> 88386.69178 | P8: =O8-O9-O10-O11 -> 8035.153798
L9: Q1 > | M9: =F13 -> 50 | N9: =F19 -> 883.8669178 | O9: =M9*N9 -> 44193.34589 | P9: =(O8)*(-O9)+(O8-O9)*(-O10-O11)+(-O10)*(-O11) -> -5180891290 | Q9: =P9/P8/3 -> -214926.0371 | R9: a
F10: =GPE!F8 -> 0 | G10: =GPE!G8 -> 0 | H10: =GPE!H8 -> 0 | L10: Q2 > | M10: =G13 -> 150 | N10: =G19 -> 107.7212806 | O10: =M10*N10 -> 16158.19209 | P10: =(O8-O9)*(-O10)*(-O11)+(-O10-O11)*(O8)*(-O9) -> 1.555193372e+14 | Q10: =P10/P8/3 -> 6451622506 | R10: b
D11: Q | E11: 0 | F11: 1 | G11: 2 | H11: L | L11: QL > | M11: =H13 -> 1000 | N11: =H19 -> 20 | O11: =M11*N11 -> 20000 | P11: =(O8)*(-O9)*(-O10)*(-O11) -> -1.262311459e+18 | Q11: =P11/P8/2 -> -7.854930292e+13 | R11: c
D12: 0 | E12: =GPE!E10 -> 104588.8261 | F12: =GPE!F10 -> -100 | G12: =GPE!G10 -> -750 | H12: =GPE!H10 -> -8766 | N12: ^ P
D13: 1 | F13: =GPE!F11 -> 50 | G13: =GPE!G11 -> 150 | H13: =GPE!H11 -> 1000 | O13: pu | P13: z
D14: 2 | F14: =GPE!F12 -> 30 | G14: =GPE!G12 -> 250 | H14: =GPE!H12 -> 1000 | L14: Z < | M14: =O14/N8 -> 794.2843664 | O14: =P$14+O8 -> 702041.6748 | P14: =-Q9+Q16+Q17 -> 613654.983 | Q14: =-Q9*Q9+Q10 -> -3.974157891e+10 | R14: B | S14: =Q14^3+Q15^2 -> 6.560854017e+28
D15: L | F15: =GPE!F13 -> 20 | G15: =GPE!G13 -> 350 | H15: =GPE!H13 -> 6766 | L15: U1 < | M15: =O15/N9 -> 644.2843664 | O15: =P$14-O9 -> 569461.6371 | Q15: =Q9^3-3*Q9*Q10/2+Q11 -> -7926738537434964 | R15: C | S15: =SQRT(ABS(S14)) -> 2.561416408e+14
L16: U2 < | M16: =O16/N10 -> 5546.692237 | O16: =P$14-O10 -> 597496.7909 | Q16: =IF(S16>0,S16^(1/3),-((-S16)^(1/3))) -> 201512.5339 | R16: S1 | S16: =(-Q15+S15) -> 8182880178270446
L17: UL < | M17: =O17/N11 -> 29682.74915 | O17: =P$14-O11 -> 593654.983 | Q17: =IF(S17>0,S17^(1/3),-((-S17)^(1/3))) -> 197216.4121 | R17: S2 | S17: =(-Q15-S15) -> 7670596896599482
E18: 0 | F18: 1 | G18: 2 | H18: L
D19: P | E19: =GPE!E18 -> 2 | F19: =GPE!F18 -> 883.8669178 | G19: =GPE!G18 -> 107.7212806 | H19: =GPE!H18 -> 20
L22: Sector 2:
N23: p | O23: pq
L24: x > | M24: =-G12 -> 750 | N24: =G19 -> 107.7212806 | O24: =M24*N24 -> 80790.96045 | P24: =O24-O25-O26-O27 -> 7344.632768
L25: Q1 > | M25: =F14 -> 30 | N25: =F19 -> 883.8669178 | O25: =M25*N25 -> 26516.00753 | P25: =(O24)*(-O25)+(O24-O25)*(-O26-O27)+(-O26)*(-O27) -> -4150788230 | Q25: =P25/P24/3 -> -188381.9273 | R25: a
L26: Q2 > | M26: =G14 -> 250 | N26: =G19 -> 107.7212806 | O26: =M26*N26 -> 26930.32015 | P26: =(O24-O25)*(-O26)*(-O27)+(-O26-O27)*(O24)*(-O25) -> 1.297694899e+14 | Q26: =P26/P24/3 -> 5889538388 | R26: b
C27: z | D27: U | E27: 0 | F27: 1 | G27: 2 | H27: L | L27: QL > | M27: =H14 -> 1000 | N27: =H19 -> 20 | O27: =M27*N27 -> 20000 | P27: =(O24)*(-O25)*(-O26)*(-O27) -> -1.153831568e+18 | Q27: =P27/P24/2 -> -7.854930292e+13 | R27: c
C28: 0 | D28: 0 | E28: =-E12+((O8-O14)+(O24-O30)-(O41-O45))/E19 -> -643139.1648 | F28: =M14 -> 794.2843664 | G28: =M30 -> 5693.503722 | H28: =-H12 -> 8766 | N28: ^ P
C29: =P14 -> 613654.983 | D29: 1 | F29: =M15 -> 644.2843664 | G29: =M16 -> 5546.692237 | H29: =M17 -> 29682.74915 | O29: pu | P29: z
C30: =P30 -> 532520.5516 | D30: 2 | F30: =M31 -> 572.4895161 | G30: =M32 -> 4693.503722 | H30: =M33 -> 25626.02758 | L30: Z < | M30: =O30/N24 -> 5693.503722 | O30: =$P$30+O24 -> 613311.5121 | P30: =-Q25+Q32+Q33 -> 532520.5516 | Q30: =-Q25*Q25+Q26 -> -2.959821216e+10 | R30: B | S30: =Q30^3+Q31^2 -> 7.604104008e+28
C31: =P45 -> 69074.85729 | D31: L | F31: =M46 -> 58.15074408 | G31: =M47 -> 291.2368745 | H31: =M45 -> -10219.74286 | L31: U1 < | M31: =O31/N25 -> 572.4895161 | O31: =$P$30-O25 -> 506004.5441 | Q31: =Q25^3-3*Q25*Q26/2+Q27 -> -5099576259480375 | R31: C | S31: =SQRT(ABS(S30)) -> 2.75755399e+14
L32: U2 < | M32: =O32/N26 -> 4693.503722 | O32: =$P$30-O26 -> 505590.2315 | Q32: =IF(S32>0,S32^(1/3),-((-S32)^(1/3))) -> 175173.5058 | R32: S1 | S32: =(-Q31+S31) -> 5375331658481722
L33: UL < | M33: =O33/N27 -> 25626.02758 | O33: =$P$30-O27 -> 512520.5516 | Q33: =IF(S33>0,S33^(1/3),-((-S33)^(1/3))) -> 168965.1184 | R33: S2 | S33: =(-Q31-S31) -> 4823820860479028
L38: Sector L:
M40: Leisure | N40: p | O40: pq
L41: x > | M41: =-H15 -> -6766 | N41: =-H19 -> -20 | O41: =M41*N41 -> 135320 | Q41: =O41-O42-O43 -> 79940.21343 | R41: a
L42: Q1 > | M42: =F15 -> 20 | N42: =F19 -> 883.8669178 | O42: =M42*N42 -> 17677.33836 | Q42: =-O41*O42-O41*O43+O42*O43 -> -6827513784 | R42: b
L43: Q2 > | M43: =G15 -> 350 | N43: =G19 -> 107.7212806 | O43: =M43*N43 -> 37702.44821 | Q43: =O41*O42*O43 -> 9.018792933e+13 | R43: c
N44: ^ P | O44: pu | P44: z
L45: Z < | M45: =O45/N41 -> -10219.74286 | O45: =P$45+O41 -> 204394.8573 | P45: =(-Q42+SQRT(Q42^2-4*Q41*Q43))/(2*Q41) -> 69074.85729
L46: U1 < | M46: =O46/N42 -> 58.15074408 | O46: =P$45-O42 -> 51397.51893
L47: U2 < | M47: =O47/N43 -> 291.2368745 | O47: =P$45-O43 -> 31372.40908

Sheet IState
G4: Commodities' Turnover Fractions, dimensionless/year
C9: =(1-C13)^-E9 -> 0.5131581182 | E9: 7 | G9: < Investment Term
C10: NPV
E11: n =
C12: i | E12: (1-1/NPV)/T | G12: V0
C13: =GPE!L15 -> -0.1 | E13: =(1-1/C9)/E9 -> -0.1355310143 | G13: 1 | H13: 0.1 | I13: =1/3 -> 0.3333333333 | J13: =1 -> 1 | K13: < V
G14: 0 | H14: 1 | I14: 2 | J14: L
G21: =GPE!E8 -> 0 | H21: =GPE!F8 -> 0 | I21: =GPE!G8 -> 0 | J21: =GPE!H8 -> 0
C22: e - | E22: e + | F22: E | G22: 0 | H22: 1 | I22: 2 | J22: L
B23: 0 | F23: 0 | G23: =GPE!E10 -> 104588.8261 | H23: =GPE!F10 -> -100 | I23: =GPE!G10 -> -750 | J23: =GPE!H10 -> -8766
B24: 1 | C24: =GPE!C11 -> -8035.153798 | F24: 1 | G24: =GPE!E11 -> -40175.76899 | H24: =GPE!F11 -> 50 | I24: =GPE!G11 -> 150 | J24: =GPE!H11 -> 1000
B25: 2 | C25: =GPE!C12 -> -7344.632768 | F25: 2 | G25: =GPE!E12 -> -36723.16384 | H25: =GPE!F12 -> 30 | I25: =GPE!G12 -> 250 | J25: =GPE!H12 -> 1000
B26: L | C26: =GPE!A13 -> 0 | E26: =GPE!C13 -> 15379.78657 | F26: L | G26: =GPE!E13 -> -27689.89328 | H26: =GPE!F13 -> 20 | I26: =GPE!G13 -> 350 | J26: =GPE!H13 -> 6766
C31: 0 | E31: 0 | G31: =G21/3 -> 0 | H31: =H21/H$13/3 -> 0 | I31: =I21/I$13/3 -> 0 | J31: =J21/J$13/3 -> 0
F32: A | G32: 0 | H32: 1 | I32: 2 | J32: L
B33: 0 | C33: 0 | E33: 0 | F33: 0 | G33: =G23/3 -> 34862.94204 | H33: =H23/H$13/3 -> -333.3333333 | I33: -750 | J33: -2922
B34: 1 | C34: =C24/C13 -> 80351.53798 | F34: 1 | G34: =G24/3 -> -13391.923 | H34: 166.6666667 | I34: 150 | J34: 333.3333333
B35: 2 | C35: =C25/C13 -> 73446.32768 | F35: 2 | G35: =G25/3 -> -12241.05461 | H35: 100 | I35: 250 | J35: 333.3333333
B36: L | E36: =E26/E13/3 -> -37825.99539 | F36: L | G36: =G26/3 -> -9229.964428 | H36: 66.66666667 | I36: 350 | J36: 2255.333333
E39: 0 | G39: =G31 -> 0 | H39: =H31 -> 0 | I39: =I31 -> 0 | J39: =J31 -> 0
F40: B | G40: 0 | H40: 1 | I40: 2 | J40: L
E41: 0 | F41: 0 | G41: =G33 -> 34862.94204 | H41: =H33 -> -333.3333333 | I41: -750 | J41: -2922
F42: 1 | G42: =G34 -> -13391.923 | H42: 166.6666667 | I42: 150 | J42: 333.3333333
C43: System State | F43: 2 | G43: =G35 -> -12241.05461 | H43: 100 | I43: 250 | J43: 333.3333333
C44: @ time = 0 > | E44: =E36 -> -37825.99539 | F44: L | G44: =G36 -> -9229.964428 | H44: 66.66666667 | I44: 350 | J44: 2255.333333
E47: 0 | G47: =G39 -> 0 | H47: =H39 -> 0 | I47: =I39 -> 0 | J47: =J39 -> 0
F48: C | G48: 0 | H48: 1 | I48: 2 | J48: L
E49: 0 | F49: 0 | G49: =G41 -> 34862.94204 | H49: =H41 -> -333.3333333 | I49: -750 | J49: -2922
F50: 1 | G50: =G42 -> -13391.923 | H50: 166.6666667 | I50: 150 | J50: 333.3333333
F51: 2 | G51: =G43 -> -12241.05461 | H51: 100 | I51: 250 | J51: 333.3333333
E52: =E44 -> -37825.99539 | F52: L | G52: =G44 -> -9229.964428 | H52: 66.66666667 | I52: 350 | J52: 2255.333333
J55: =Utility!H31/J13 -> -10219.74286
C58: k | E58: A
B59: 2 | C59: 0 | D59: 2 | E59: 0 | F59: 2
B60: 1 | C60: 0 | D60: 1 | E60: 0 | F60: 1
B61: 0 | C61: 0 | D61: 0 | E61: 0 | F61: 0
E63: B
C64: International | D64: 2 | E64: 0 | F64: 2
C65: Financial State | D65: 1 | E65: 0 | F65: 1
C66: @ time = 0 > | D66: 0 | E66: 0 | F66: 0
E68: C
D69: 2 | E69: 0 | F69: 2
D70: 1 | E70: 0 | F70: 1
D71: 0 | E71: 0 | F71: 0

Sheet Module1 (hidden)

Sheet Module2 (hidden)
